{"text_format":"1","workbook":"xlsx","n_sheets":4,"sheets":["NAA.K.T.","RESULTATEN","TOEPASSINGEN","AANVULLINGEN"],"not_rendered":{"charts":0,"images":1,"macros":1,"external_links":2,"defined_names":8,"comments":0,"pivot_tables":0},"unopened":[],"bounds":{"document_bytes":16777216,"sheet_cells":100000,"rows_first":2000,"rows_last":500,"rows_between":2000,"halvings":0,"cell_chars":16384,"cell_head_chars":4096},"cells_cut":0,"cells_raw":0,"read":"whole","date_system":"1900"}

{"sheet":"NAA.K.T.","index":0,"n_rows":323,"n_cols":8,"rows_kept":323,"cut":false,"hidden":false,"merged":[]}
[null,"resultaat NAAM","resultaat KENMERK","SYNONIEMEN","resultaat TOEPASSING","resultaat NAA.K.T.","resultaat NL-SfB Tabel 3"]
[null,{"$f":"IF(F2=\"NAA.K.T.\",\"NAAM\",LEFT(F2,SEARCH(\"_\",F2)-1))","v":"NAAM"},{"$f":"IF(F2=\"NAA.K.T.\",\"KENMERK\",MID(F2,SEARCH(\"_\",F2)+1,SEARCH(\"_\",F2,SEARCH(\"_\",F2)+1)-SEARCH(\"_\",F2)-1))","v":"KENMERK"},"",{"$f":"IF(F2=\"NAA.K.T.\",\"TOEPASSING\",RIGHT(F2,LEN(F2)-LEN(B2)-LEN(C2)-2))","v":"TOEPASSING"},{"$f":"IF(SUBTOTAL(3,Tabel3[BOUW_MATERIAAL])>1,\"NAA.K.T.\",VLOOKUP(1,$A$1:$F$322,6,FALSE))","v":"NAA.K.T."},{"$f":"IF(SUBTOTAL(3,Tabel3[BOUW_MATERIAAL])>1,\"NL-SfB\",VLOOKUP(1,$A$1:$G$323,7,FALSE))","v":"NL-SfB"},{"$f":"IF(SUBTOTAL(3,Tabel3[BOUW_MATERIAAL])>1,\"Tabel 3\",VLOOKUP(1,$A$1:$H$323,8,FALSE))","v":"Tabel 3"}]
[]
[null,"KLEDING ADVIES:","",""]
[null,null,null,"","pull down menu","_"]
[null,"NAAM","KENMERK","SYNONIEMEN","TOEPASSING","BOUW_MATERIAAL","NL-SfB","Tabel 3"]
[{"$f":"SUBTOTAL(3,$F$7:F7)","v":1},"beton","ntb","beton ntb nog te bepalen weet niet ontwerp geen idee overig","ntb",{"$f":"Tabel3[[#This Row],[NAAM]]&$F$5&Tabel3[[#This Row],[KENMERK]]&$F$5&Tabel3[[#This Row],[TOEPASSING]]","v":"beton_ntb_ntb"},"f",2]
[{"$f":"SUBTOTAL(3,$F$7:F8)","v":2},"beton","generiek","beton generiek ontwerp algemeen willekeurig van alles iets ","ntb",{"$f":"Tabel3[[#This Row],[NAAM]]&$F$5&Tabel3[[#This Row],[KENMERK]]&$F$5&Tabel3[[#This Row],[TOEPASSING]]","v":"beton_generiek_ntb"},"f",2]
[{"$f":"SUBTOTAL(3,$F$7:F9)","v":3},"beton","bimsbeton","beton bimsbeton drijfsteen vulkanisch puimsteen gruis gebonden lichte bouwsteen","ntb",{"$f":"Tabel3[[#This Row],[NAAM]]&$F$5&Tabel3[[#This Row],[KENMERK]]&$F$5&Tabel3[[#This Row],[TOEPASSING]]","v":"beton_bimsbeton_ntb"},"f",2]
[{"$f":"SUBTOTAL(3,$F$7:F10)","v":4},"beton","cellenbeton","beton cellenbeton","ntb",{"$f":"Tabel3[[#This Row],[NAAM]]&$F$5&Tabel3[[#This Row],[KENMERK]]&$F$5&Tabel3[[#This Row],[TOEPASSING]]","v":"beton_cellenbeton_ntb"},"f",2]
[{"$f":"SUBTOTAL(3,$F$7:F11)","v":5},"beton","gasbeton","beton gasbeton thermisch licht","ntb",{"$f":"Tabel3[[#This Row],[NAAM]]&$F$5&Tabel3[[#This Row],[KENMERK]]&$F$5&Tabel3[[#This Row],[TOEPASSING]]","v":"beton_gasbeton_ntb"},"f",2]
[{"$f":"SUBTOTAL(3,$F$7:F12)","v":6},"beton","gewapend","beton gewapend","ntb",{"$f":"Tabel3[[#This Row],[NAAM]]&$F$5&Tabel3[[#This Row],[KENMERK]]&$F$5&Tabel3[[#This Row],[TOEPASSING]]","v":"beton_gewapend_ntb"},"f",2]
[{"$f":"SUBTOTAL(3,$F$7:F13)","v":7},"beton","grindbeton","beton grindbeton","ntb",{"$f":"Tabel3[[#This Row],[NAAM]]&$F$5&Tabel3[[#This Row],[KENMERK]]&$F$5&Tabel3[[#This Row],[TOEPASSING]]","v":"beton_grindbeton_ntb"},"f",2]
[{"$f":"SUBTOTAL(3,$F$7:F14)","v":8},"beton","isolatiebeton","beton isolatiebeton","ntb",{"$f":"Tabel3[[#This Row],[NAAM]]&$F$5&Tabel3[[#This Row],[KENMERK]]&$F$5&Tabel3[[#This Row],[TOEPASSING]]","v":"beton_isolatiebeton_ntb"},"f",3]
[{"$f":"SUBTOTAL(3,$F$7:F15)","v":9},"beton","lichtbeton","beton lichtbeton","ntb",{"$f":"Tabel3[[#This Row],[NAAM]]&$F$5&Tabel3[[#This Row],[KENMERK]]&$F$5&Tabel3[[#This Row],[TOEPASSING]]","v":"beton_lichtbeton_ntb"},"f",2]
[{"$f":"SUBTOTAL(3,$F$7:F16)","v":10},"beton","slakkenbeton","beton slakkenbeton","ntb",{"$f":"Tabel3[[#This Row],[NAAM]]&$F$5&Tabel3[[#This Row],[KENMERK]]&$F$5&Tabel3[[#This Row],[TOEPASSING]]","v":"beton_slakkenbeton_ntb"},"f",2]
[{"$f":"SUBTOTAL(3,$F$7:F17)","v":11},"beton","voorgespannen","beton voorgespannen ","ntb",{"$f":"Tabel3[[#This Row],[NAAM]]&$F$5&Tabel3[[#This Row],[KENMERK]]&$F$5&Tabel3[[#This Row],[TOEPASSING]]","v":"beton_voorgespannen_ntb"},"f",2]
[{"$f":"SUBTOTAL(3,$F$7:F18)","v":12},"beton","schuimbeton","beton schuimbeton licht cellenbeton isolatie cement","ntb",{"$f":"Tabel3[[#This Row],[NAAM]]&$F$5&Tabel3[[#This Row],[KENMERK]]&$F$5&Tabel3[[#This Row],[TOEPASSING]]","v":"beton_schuimbeton_ntb"},"f",2]
[{"$f":"SUBTOTAL(3,$F$7:F19)","v":13},"beton","staalvezelbeton","beton staalvezelbeton gewapend versterkt","ntb",{"$f":"Tabel3[[#This Row],[NAAM]]&$F$5&Tabel3[[#This Row],[KENMERK]]&$F$5&Tabel3[[#This Row],[TOEPASSING]]","v":"beton_staalvezelbeton_ntb"},"f",2]
[{"$f":"SUBTOTAL(3,$F$7:F20)","v":14},"beton","spuitbeton","beton spuitbeton","ntb",{"$f":"Tabel3[[#This Row],[NAAM]]&$F$5&Tabel3[[#This Row],[KENMERK]]&$F$5&Tabel3[[#This Row],[TOEPASSING]]","v":"beton_spuitbeton_ntb"},"f",2]
[{"$f":"SUBTOTAL(3,$F$7:F21)","v":15},"bitumen","ntb","bitumen ntb nog te bepalen weet niet ontwerp geen idee overig","ntb",{"$f":"Tabel3[[#This Row],[NAAM]]&$F$5&Tabel3[[#This Row],[KENMERK]]&$F$5&Tabel3[[#This Row],[TOEPASSING]]","v":"bitumen_ntb_ntb"},"n",1]
[{"$f":"SUBTOTAL(3,$F$7:F22)","v":16},"bitumen","generiek","bitumen generiek ontwerp algemeen willekeurig van alles iets ","ntb",{"$f":"Tabel3[[#This Row],[NAAM]]&$F$5&Tabel3[[#This Row],[KENMERK]]&$F$5&Tabel3[[#This Row],[TOEPASSING]]","v":"bitumen_generiek_ntb"},"n",1]
[{"$f":"SUBTOTAL(3,$F$7:F23)","v":17},"bitumen","asfalt","bitumen asfalt","ntb",{"$f":"Tabel3[[#This Row],[NAAM]]&$F$5&Tabel3[[#This Row],[KENMERK]]&$F$5&Tabel3[[#This Row],[TOEPASSING]]","v":"bitumen_asfalt_ntb"},"n",1]
[{"$f":"SUBTOTAL(3,$F$7:F24)","v":18},"bitumen","teer","bitumen teer houtskool steenkool","ntb",{"$f":"Tabel3[[#This Row],[NAAM]]&$F$5&Tabel3[[#This Row],[KENMERK]]&$F$5&Tabel3[[#This Row],[TOEPASSING]]","v":"bitumen_teer_ntb"},"n",1]
[{"$f":"SUBTOTAL(3,$F$7:F25)","v":19},"cement","ntb","cement ntb nog te bepalen weet niet ontwerp geen idee overig","ntb",{"$f":"Tabel3[[#This Row],[NAAM]]&$F$5&Tabel3[[#This Row],[KENMERK]]&$F$5&Tabel3[[#This Row],[TOEPASSING]]","v":"cement_ntb_ntb"},"q",1]
[{"$f":"SUBTOTAL(3,$F$7:F26)","v":20},"cement","generiek","cement generiek ontwerp algemeen willekeurig van alles iets ","ntb",{"$f":"Tabel3[[#This Row],[NAAM]]&$F$5&Tabel3[[#This Row],[KENMERK]]&$F$5&Tabel3[[#This Row],[TOEPASSING]]","v":"cement_generiek_ntb"},"q",2]
[{"$f":"SUBTOTAL(3,$F$7:F27)","v":21},"cement","asbestcement","cement asbestcement","ntb",{"$f":"Tabel3[[#This Row],[NAAM]]&$F$5&Tabel3[[#This Row],[KENMERK]]&$F$5&Tabel3[[#This Row],[TOEPASSING]]","v":"cement_asbestcement_ntb"},"q",2]
[{"$f":"SUBTOTAL(3,$F$7:F28)","v":22},"cement","cementstuc","cement cementstuc pleisterlaag pleisterwerk","ntb",{"$f":"Tabel3[[#This Row],[NAAM]]&$F$5&Tabel3[[#This Row],[KENMERK]]&$F$5&Tabel3[[#This Row],[TOEPASSING]]","v":"cement_cementstuc_ntb"},"q",2]
[{"$f":"SUBTOTAL(3,$F$7:F29)","v":23},"cement","grout","cement grout  groutkolom jetgrout voorgespannen beton","ntb",{"$f":"Tabel3[[#This Row],[NAAM]]&$F$5&Tabel3[[#This Row],[KENMERK]]&$F$5&Tabel3[[#This Row],[TOEPASSING]]","v":"cement_grout_ntb"},"q",2]
[{"$f":"SUBTOTAL(3,$F$7:F30)","v":24},"cement","houtvezelcement","cement houtvezelcement","ntb",{"$f":"Tabel3[[#This Row],[NAAM]]&$F$5&Tabel3[[#This Row],[KENMERK]]&$F$5&Tabel3[[#This Row],[TOEPASSING]]","v":"cement_houtvezelcement_ntb"},"q"]
[{"$f":"SUBTOTAL(3,$F$7:F31)","v":25},"cement","houtwolcement","cement houtwolcement isolatie heraklith ","ntb",{"$f":"Tabel3[[#This Row],[NAAM]]&$F$5&Tabel3[[#This Row],[KENMERK]]&$F$5&Tabel3[[#This Row],[TOEPASSING]]","v":"cement_houtwolcement_ntb"},"q"]
[{"$f":"SUBTOTAL(3,$F$7:F32)","v":26},"cement","metselspecie","cement metselspecie voeg","ntb",{"$f":"Tabel3[[#This Row],[NAAM]]&$F$5&Tabel3[[#This Row],[KENMERK]]&$F$5&Tabel3[[#This Row],[TOEPASSING]]","v":"cement_metselspecie_ntb"},"q",2]
[{"$f":"SUBTOTAL(3,$F$7:F33)","v":27},"cement","mortel","cement mortel voeg","ntb",{"$f":"Tabel3[[#This Row],[NAAM]]&$F$5&Tabel3[[#This Row],[KENMERK]]&$F$5&Tabel3[[#This Row],[TOEPASSING]]","v":"cement_mortel_ntb"},"q",2]
[{"$f":"SUBTOTAL(3,$F$7:F34)","v":28},"cement","spuitmortel","cement spuitmortel voeg","ntb",{"$f":"Tabel3[[#This Row],[NAAM]]&$F$5&Tabel3[[#This Row],[KENMERK]]&$F$5&Tabel3[[#This Row],[TOEPASSING]]","v":"cement_spuitmortel_ntb"},"q",2]
[{"$f":"SUBTOTAL(3,$F$7:F35)","v":29},"cement","terrazzo","cement terrazzo granito","ntb",{"$f":"Tabel3[[#This Row],[NAAM]]&$F$5&Tabel3[[#This Row],[KENMERK]]&$F$5&Tabel3[[#This Row],[TOEPASSING]]","v":"cement_terrazzo_ntb"},"q",4]
[{"$f":"SUBTOTAL(3,$F$7:F36)","v":30},"cement","vezelcement","cement vezelcement cempanel hardie windbreaker","ntb",{"$f":"Tabel3[[#This Row],[NAAM]]&$F$5&Tabel3[[#This Row],[KENMERK]]&$F$5&Tabel3[[#This Row],[TOEPASSING]]","v":"cement_vezelcement_ntb"},"q",4]
[{"$f":"SUBTOTAL(3,$F$7:F37)","v":31},"cement","zandcement","cement zandcement dekvloer afwerklaag","ntb",{"$f":"Tabel3[[#This Row],[NAAM]]&$F$5&Tabel3[[#This Row],[KENMERK]]&$F$5&Tabel3[[#This Row],[TOEPASSING]]","v":"cement_zandcement_ntb"},"q",4]
[{"$f":"SUBTOTAL(3,$F$7:F38)","v":32},"cement","zandcement-vezel","cement zandcement-vezel dekvloer afwerklaag versterkt","ntb",{"$f":"Tabel3[[#This Row],[NAAM]]&$F$5&Tabel3[[#This Row],[KENMERK]]&$F$5&Tabel3[[#This Row],[TOEPASSING]]","v":"cement_zandcement-vezel_ntb"},"q",4]
[{"$f":"SUBTOTAL(3,$F$7:F39)","v":33},"gips","ntb","gips ntb nog te bepalen weet niet ontwerp geen idee overig","ntb",{"$f":"Tabel3[[#This Row],[NAAM]]&$F$5&Tabel3[[#This Row],[KENMERK]]&$F$5&Tabel3[[#This Row],[TOEPASSING]]","v":"gips_ntb_ntb"},"f",7]
[{"$f":"SUBTOTAL(3,$F$7:F40)","v":34},"gips","generiek","gips generiek ontwerp algemeen willekeurig van alles iets ","ntb",{"$f":"Tabel3[[#This Row],[NAAM]]&$F$5&Tabel3[[#This Row],[KENMERK]]&$F$5&Tabel3[[#This Row],[TOEPASSING]]","v":"gips_generiek_ntb"},"f",7]
[{"$f":"SUBTOTAL(3,$F$7:F41)","v":35},"gips","anhydriet","gips natuurgips fosfogips sulfogips","ntb",{"$f":"Tabel3[[#This Row],[NAAM]]&$F$5&Tabel3[[#This Row],[KENMERK]]&$F$5&Tabel3[[#This Row],[TOEPASSING]]","v":"gips_anhydriet_ntb"},"f",7]
[{"$f":"SUBTOTAL(3,$F$7:F42)","v":36},"gips","gipskarton","gips gipskarton plaat gebonden","ntb",{"$f":"Tabel3[[#This Row],[NAAM]]&$F$5&Tabel3[[#This Row],[KENMERK]]&$F$5&Tabel3[[#This Row],[TOEPASSING]]","v":"gips_gipskarton_ntb"},"f"]
[{"$f":"SUBTOTAL(3,$F$7:F43)","v":37},"gips","spuitstuc","gips spuitstuc pleisterwerk gipspleister spuitspack pleisterlaag pleisterwerk","ntb",{"$f":"Tabel3[[#This Row],[NAAM]]&$F$5&Tabel3[[#This Row],[KENMERK]]&$F$5&Tabel3[[#This Row],[TOEPASSING]]","v":"gips_spuitstuc_ntb"},"f"]
[{"$f":"SUBTOTAL(3,$F$7:F44)","v":38},"gips","stuc","gips stuc pleisterwerk gipspleister spack pleisterlaag pleisterwerk spachtelputz","ntb",{"$f":"Tabel3[[#This Row],[NAAM]]&$F$5&Tabel3[[#This Row],[KENMERK]]&$F$5&Tabel3[[#This Row],[TOEPASSING]]","v":"gips_stuc_ntb"},"f"]
[{"$f":"SUBTOTAL(3,$F$7:F45)","v":39},"glas","ntb","glas ntb nog te bepalen weet niet ontwerp geen idee overig","ntb",{"$f":"Tabel3[[#This Row],[NAAM]]&$F$5&Tabel3[[#This Row],[KENMERK]]&$F$5&Tabel3[[#This Row],[TOEPASSING]]","v":"glas_ntb_ntb"},"o",1]
[{"$f":"SUBTOTAL(3,$F$7:F46)","v":40},"glas","generiek","glas generiek ontwerp algemeen willekeurig van alles iets ","ntb",{"$f":"Tabel3[[#This Row],[NAAM]]&$F$5&Tabel3[[#This Row],[KENMERK]]&$F$5&Tabel3[[#This Row],[TOEPASSING]]","v":"glas_generiek_ntb"},"o"]
[{"$f":"SUBTOTAL(3,$F$7:F47)","v":41},"glas","cellulairglas","glas cellulairglas","ntb",{"$f":"Tabel3[[#This Row],[NAAM]]&$F$5&Tabel3[[#This Row],[KENMERK]]&$F$5&Tabel3[[#This Row],[TOEPASSING]]","v":"glas_cellulairglas_ntb"},"o"]
[{"$f":"SUBTOTAL(3,$F$7:F48)","v":42},"glas","gehard","glas gehard","ntb",{"$f":"Tabel3[[#This Row],[NAAM]]&$F$5&Tabel3[[#This Row],[KENMERK]]&$F$5&Tabel3[[#This Row],[TOEPASSING]]","v":"glas_gehard_ntb"},"o",5]
[{"$f":"SUBTOTAL(3,$F$7:F49)","v":43},"glas","gewapend","glas gewapend","ntb",{"$f":"Tabel3[[#This Row],[NAAM]]&$F$5&Tabel3[[#This Row],[KENMERK]]&$F$5&Tabel3[[#This Row],[TOEPASSING]]","v":"glas_gewapend_ntb"},"o",1]
[{"$f":"SUBTOTAL(3,$F$7:F50)","v":44},"glas","helder","glas helder","ntb",{"$f":"Tabel3[[#This Row],[NAAM]]&$F$5&Tabel3[[#This Row],[KENMERK]]&$F$5&Tabel3[[#This Row],[TOEPASSING]]","v":"glas_helder_ntb"},"o",1]
[{"$f":"SUBTOTAL(3,$F$7:F51)","v":45},"glas","kwartsglas","glas kwartsglas","ntb",{"$f":"Tabel3[[#This Row],[NAAM]]&$F$5&Tabel3[[#This Row],[KENMERK]]&$F$5&Tabel3[[#This Row],[TOEPASSING]]","v":"glas_kwartsglas_ntb"},"o",1]
[{"$f":"SUBTOTAL(3,$F$7:F52)","v":46},"glas","opaal","glas opaal kleurloos melkachtig upala opaalmatrix boulderopaal harlekijnopaal jellyopaal chrystalopaal girasol vuuropaal agaatopaal houtopaal angel skin palygorskiet honingopaal hyaliet hydrofaan opalescentie cascholong melkwit melkopaal porceleinopaal ondoorzichtig mosopaal \nprasopaal wasopaal","ntb",{"$f":"Tabel3[[#This Row],[NAAM]]&$F$5&Tabel3[[#This Row],[KENMERK]]&$F$5&Tabel3[[#This Row],[TOEPASSING]]","v":"glas_opaal_ntb"},"o",5]
[{"$f":"SUBTOTAL(3,$F$7:F53)","v":47},"glas","spiegelend","glas spiegelend refelcterend weerkaatsend ","ntb",{"$f":"Tabel3[[#This Row],[NAAM]]&$F$5&Tabel3[[#This Row],[KENMERK]]&$F$5&Tabel3[[#This Row],[TOEPASSING]]","v":"glas_spiegelend_ntb"},"o",5]
[{"$f":"SUBTOTAL(3,$F$7:F54)","v":48},"grondstof","ntb","grondstof ntb nog te bepalen weet niet ontwerp geen idee overig","ntb",{"$f":"Tabel3[[#This Row],[NAAM]]&$F$5&Tabel3[[#This Row],[KENMERK]]&$F$5&Tabel3[[#This Row],[TOEPASSING]]","v":"grondstof_ntb_ntb"},"g"]
[{"$f":"SUBTOTAL(3,$F$7:F55)","v":49},"grondstof","generiek","grondstof generiek ontwerp algemeen willekeurig van alles iets ","ntb",{"$f":"Tabel3[[#This Row],[NAAM]]&$F$5&Tabel3[[#This Row],[KENMERK]]&$F$5&Tabel3[[#This Row],[TOEPASSING]]","v":"grondstof_generiek_ntb"},"p"]
[{"$f":"SUBTOTAL(3,$F$7:F56)","v":50},"grondstof","aarde","grondstof aarde","ntb",{"$f":"Tabel3[[#This Row],[NAAM]]&$F$5&Tabel3[[#This Row],[KENMERK]]&$F$5&Tabel3[[#This Row],[TOEPASSING]]","v":"grondstof_aarde_ntb"},"p",1]
[{"$f":"SUBTOTAL(3,$F$7:F57)","v":51},"grondstof","bimszand","grondstof bimszand vulkanisch puimsteen flugsand loskorrelig poreus licht bimskies grind","ntb",{"$f":"Tabel3[[#This Row],[NAAM]]&$F$5&Tabel3[[#This Row],[KENMERK]]&$F$5&Tabel3[[#This Row],[TOEPASSING]]","v":"grondstof_bimszand_ntb"},"p",1]
[{"$f":"SUBTOTAL(3,$F$7:F58)","v":52},"grondstof","grind","grondstof grind steenachtig","ntb",{"$f":"Tabel3[[#This Row],[NAAM]]&$F$5&Tabel3[[#This Row],[KENMERK]]&$F$5&Tabel3[[#This Row],[TOEPASSING]]","v":"grondstof_grind_ntb"},"p",1]
[{"$f":"SUBTOTAL(3,$F$7:F59)","v":53},"grondstof","kalk","grondstof kalk","ntb",{"$f":"Tabel3[[#This Row],[NAAM]]&$F$5&Tabel3[[#This Row],[KENMERK]]&$F$5&Tabel3[[#This Row],[TOEPASSING]]","v":"grondstof_kalk_ntb"},"q"]
[{"$f":"SUBTOTAL(3,$F$7:F60)","v":54},"grondstof","klei","grondstof klei","ntb",{"$f":"Tabel3[[#This Row],[NAAM]]&$F$5&Tabel3[[#This Row],[KENMERK]]&$F$5&Tabel3[[#This Row],[TOEPASSING]]","v":"grondstof_klei_ntb"},"g",1]
[{"$f":"SUBTOTAL(3,$F$7:F61)","v":55},"grondstof","leem","grondstof leem","ntb",{"$f":"Tabel3[[#This Row],[NAAM]]&$F$5&Tabel3[[#This Row],[KENMERK]]&$F$5&Tabel3[[#This Row],[TOEPASSING]]","v":"grondstof_leem_ntb"},"g"]
[{"$f":"SUBTOTAL(3,$F$7:F62)","v":56},"grondstof","lucht","grondstof lucht luchtspouw stilstaand ventilerend sterk zwak zuurstof buiten valse","ntb",{"$f":"Tabel3[[#This Row],[NAAM]]&$F$5&Tabel3[[#This Row],[KENMERK]]&$F$5&Tabel3[[#This Row],[TOEPASSING]]","v":"grondstof_lucht_ntb"},"z",9]
[{"$f":"SUBTOTAL(3,$F$7:F63)","v":57},"grondstof","silt","grondstof silt","ntb",{"$f":"Tabel3[[#This Row],[NAAM]]&$F$5&Tabel3[[#This Row],[KENMERK]]&$F$5&Tabel3[[#This Row],[TOEPASSING]]","v":"grondstof_silt_ntb"},"p",1]
[{"$f":"SUBTOTAL(3,$F$7:F64)","v":58},"grondstof","split","grondstof split steenachtig","ntb",{"$f":"Tabel3[[#This Row],[NAAM]]&$F$5&Tabel3[[#This Row],[KENMERK]]&$F$5&Tabel3[[#This Row],[TOEPASSING]]","v":"grondstof_split_ntb"},"p",1]
[{"$f":"SUBTOTAL(3,$F$7:F65)","v":59},"grondstof","turf","grondstof turf","ntb",{"$f":"Tabel3[[#This Row],[NAAM]]&$F$5&Tabel3[[#This Row],[KENMERK]]&$F$5&Tabel3[[#This Row],[TOEPASSING]]","v":"grondstof_turf_ntb"},"p",1]
[{"$f":"SUBTOTAL(3,$F$7:F66)","v":60},"grondstof","water","grondstof water","ntb",{"$f":"Tabel3[[#This Row],[NAAM]]&$F$5&Tabel3[[#This Row],[KENMERK]]&$F$5&Tabel3[[#This Row],[TOEPASSING]]","v":"grondstof_water_ntb"},"w",4]
[{"$f":"SUBTOTAL(3,$F$7:F67)","v":61},"grondstof","zand","grondstof zand","ntb",{"$f":"Tabel3[[#This Row],[NAAM]]&$F$5&Tabel3[[#This Row],[KENMERK]]&$F$5&Tabel3[[#This Row],[TOEPASSING]]","v":"grondstof_zand_ntb"},"p",1]
[{"$f":"SUBTOTAL(3,$F$7:F68)","v":62},"hout","ntb","hout ntb nog te bepalen weet niet ontwerp geen idee overig","ntb",{"$f":"Tabel3[[#This Row],[NAAM]]&$F$5&Tabel3[[#This Row],[KENMERK]]&$F$5&Tabel3[[#This Row],[TOEPASSING]]","v":"hout_ntb_ntb"},"i",0]
[{"$f":"SUBTOTAL(3,$F$7:F69)","v":63},"hout","generiek","hout generiek ontwerp algemeen willekeurig van alles iets boom plank plaat","ntb",{"$f":"Tabel3[[#This Row],[NAAM]]&$F$5&Tabel3[[#This Row],[KENMERK]]&$F$5&Tabel3[[#This Row],[TOEPASSING]]","v":"hout_generiek_ntb"},"i",1]
[{"$f":"SUBTOTAL(3,$F$7:F70)","v":64},"hout","accoya","hout accoya naaldhout gemodificeerd acetyleren azijnzuur rotbestendig","ntb",{"$f":"Tabel3[[#This Row],[NAAM]]&$F$5&Tabel3[[#This Row],[KENMERK]]&$F$5&Tabel3[[#This Row],[TOEPASSING]]","v":"hout_accoya_ntb"},"i"]
[{"$f":"SUBTOTAL(3,$F$7:F71)","v":65},"hout","azobe","hout azobé azobe loofhout hardhout lophira alata banks gaertn ekki en red ironwood","ntb",{"$f":"Tabel3[[#This Row],[NAAM]]&$F$5&Tabel3[[#This Row],[KENMERK]]&$F$5&Tabel3[[#This Row],[TOEPASSING]]","v":"hout_azobe_ntb"},"i",1]
[{"$f":"SUBTOTAL(3,$F$7:F72)","v":66},"hout","balsa","hout balsa loofhout zachthout ochroma pyramidale lagopus kurkhout ecuador","ntb",{"$f":"Tabel3[[#This Row],[NAAM]]&$F$5&Tabel3[[#This Row],[KENMERK]]&$F$5&Tabel3[[#This Row],[TOEPASSING]]","v":"hout_balsa_ntb"},"i",1]
[{"$f":"SUBTOTAL(3,$F$7:F73)","v":67},"hout","bangkirai","hout bangkirai bankirai loofhout hardhout yellow balau selangan batu shorea laevis","ntb",{"$f":"Tabel3[[#This Row],[NAAM]]&$F$5&Tabel3[[#This Row],[KENMERK]]&$F$5&Tabel3[[#This Row],[TOEPASSING]]","v":"hout_bangkirai_ntb"},"i",1]
[{"$f":"SUBTOTAL(3,$F$7:F74)","v":68},"hout","berken","hout berken loofhout zachthout zilverberk betulaceae betula","ntb",{"$f":"Tabel3[[#This Row],[NAAM]]&$F$5&Tabel3[[#This Row],[KENMERK]]&$F$5&Tabel3[[#This Row],[TOEPASSING]]","v":"hout_berken_ntb"},"i",1]
[{"$f":"SUBTOTAL(3,$F$7:F75)","v":69},"hout","beuken","hout beuken loofhout hardhout fagus sylvatica napjesdragersfamilie fagaceae treurbeuk beukennoot","ntb",{"$f":"Tabel3[[#This Row],[NAAM]]&$F$5&Tabel3[[#This Row],[KENMERK]]&$F$5&Tabel3[[#This Row],[TOEPASSING]]","v":"hout_beuken_ntb"},"i",1]
[{"$f":"SUBTOTAL(3,$F$7:F76)","v":70},"hout","bilinga","hout bilinga loofhout hardhout nauclea sterbladigenfamilie rubiaceae opepe aloma nauclea diderrichii","ntb",{"$f":"Tabel3[[#This Row],[NAAM]]&$F$5&Tabel3[[#This Row],[KENMERK]]&$F$5&Tabel3[[#This Row],[TOEPASSING]]","v":"hout_bilinga_ntb"},"i",1]
[{"$f":"SUBTOTAL(3,$F$7:F77)","v":71},"hout","board","hout board","ntb",{"$f":"Tabel3[[#This Row],[NAAM]]&$F$5&Tabel3[[#This Row],[KENMERK]]&$F$5&Tabel3[[#This Row],[TOEPASSING]]","v":"hout_board_ntb"},"i",4]
[{"$f":"SUBTOTAL(3,$F$7:F78)","v":72},"hout","clt","hout clt cross laminated timber kruislaaghout gelijmd houtskelet","ntb",{"$f":"Tabel3[[#This Row],[NAAM]]&$F$5&Tabel3[[#This Row],[KENMERK]]&$F$5&Tabel3[[#This Row],[TOEPASSING]]","v":"hout_clt_ntb"},"i",4]
[{"$f":"SUBTOTAL(3,$F$7:F79)","v":73},"hout","douglas","hout douglas naaldhout hardhout douglasspar oregon-pine pseudotsuga menziesii pinaceae","ntb",{"$f":"Tabel3[[#This Row],[NAAM]]&$F$5&Tabel3[[#This Row],[KENMERK]]&$F$5&Tabel3[[#This Row],[TOEPASSING]]","v":"hout_douglas_ntb"},"i",1]
[{"$f":"SUBTOTAL(3,$F$7:F80)","v":74},"hout","ebben","hout ebben loofhout hardhout zwart ebenaceae","ntb",{"$f":"Tabel3[[#This Row],[NAAM]]&$F$5&Tabel3[[#This Row],[KENMERK]]&$F$5&Tabel3[[#This Row],[TOEPASSING]]","v":"hout_ebben_ntb"},"i",1]
[{"$f":"SUBTOTAL(3,$F$7:F81)","v":75},"hout","eiken","hout eiken eik loofhout hardhout europees amerikaans japans fagaceae","ntb",{"$f":"Tabel3[[#This Row],[NAAM]]&$F$5&Tabel3[[#This Row],[KENMERK]]&$F$5&Tabel3[[#This Row],[TOEPASSING]]","v":"hout_eiken_ntb"},"i",1]
[{"$f":"SUBTOTAL(3,$F$7:F82)","v":76},"hout","esdoorn","hout esdoorn loofhout hardhout acer pseudoplatanus maple ahorn aceraceae sapindaceae","ntb",{"$f":"Tabel3[[#This Row],[NAAM]]&$F$5&Tabel3[[#This Row],[KENMERK]]&$F$5&Tabel3[[#This Row],[TOEPASSING]]","v":"hout_esdoorn_ntb"},"i",1]
[{"$f":"SUBTOTAL(3,$F$7:F83)","v":77},"hout","essen","hout essen es loofhout hardhout fraxinus excelsior","ntb",{"$f":"Tabel3[[#This Row],[NAAM]]&$F$5&Tabel3[[#This Row],[KENMERK]]&$F$5&Tabel3[[#This Row],[TOEPASSING]]","v":"hout_essen_ntb"},"i",1]
[{"$f":"SUBTOTAL(3,$F$7:F84)","v":78},"hout","gemodificeerd","hout gemodificeerd finti accoya thermisch chemisch dood rotbestendig gewolmaniseerd","ntb",{"$f":"Tabel3[[#This Row],[NAAM]]&$F$5&Tabel3[[#This Row],[KENMERK]]&$F$5&Tabel3[[#This Row],[TOEPASSING]]","v":"hout_gemodificeerd_ntb"},"i"]
[{"$f":"SUBTOTAL(3,$F$7:F85)","v":79},"hout","grenen","hout grenen naaldhout zachthout pinus sylvestris dennenhout pinaceae","ntb",{"$f":"Tabel3[[#This Row],[NAAM]]&$F$5&Tabel3[[#This Row],[KENMERK]]&$F$5&Tabel3[[#This Row],[TOEPASSING]]","v":"hout_grenen_ntb"},"i",1]
[{"$f":"SUBTOTAL(3,$F$7:F86)","v":80},"hout","hardboard","hout hardboard","ntb",{"$f":"Tabel3[[#This Row],[NAAM]]&$F$5&Tabel3[[#This Row],[KENMERK]]&$F$5&Tabel3[[#This Row],[TOEPASSING]]","v":"hout_hardboard_ntb"},"i",4]
[{"$f":"SUBTOTAL(3,$F$7:F87)","v":81},"hout","hardhout","hout hardhout loofhout","ntb",{"$f":"Tabel3[[#This Row],[NAAM]]&$F$5&Tabel3[[#This Row],[KENMERK]]&$F$5&Tabel3[[#This Row],[TOEPASSING]]","v":"hout_hardhout_ntb"},"i",1]
[{"$f":"SUBTOTAL(3,$F$7:F88)","v":82},"hout","houtspaan","hout houtspaan","ntb",{"$f":"Tabel3[[#This Row],[NAAM]]&$F$5&Tabel3[[#This Row],[KENMERK]]&$F$5&Tabel3[[#This Row],[TOEPASSING]]","v":"hout_houtspaan_ntb"},"i",4]
[{"$f":"SUBTOTAL(3,$F$7:F89)","v":83},"hout","houtvezel","hout houtvezel","ntb",{"$f":"Tabel3[[#This Row],[NAAM]]&$F$5&Tabel3[[#This Row],[KENMERK]]&$F$5&Tabel3[[#This Row],[TOEPASSING]]","v":"hout_houtvezel_ntb"},"i",4]
[{"$f":"SUBTOTAL(3,$F$7:F90)","v":84},"hout","houtwol","hout houtwol","ntb",{"$f":"Tabel3[[#This Row],[NAAM]]&$F$5&Tabel3[[#This Row],[KENMERK]]&$F$5&Tabel3[[#This Row],[TOEPASSING]]","v":"hout_houtwol_ntb"},"i",4]
[{"$f":"SUBTOTAL(3,$F$7:F91)","v":85},"hout","kersen","hout kersen loofhout hardhout rosaceae prunus avium kersenhout","ntb",{"$f":"Tabel3[[#This Row],[NAAM]]&$F$5&Tabel3[[#This Row],[KENMERK]]&$F$5&Tabel3[[#This Row],[TOEPASSING]]","v":"hout_kersen_ntb"},"i",1]
[{"$f":"SUBTOTAL(3,$F$7:F92)","v":86},"hout","lariks","hout lariks lork larix naaldhout hardhout decidua gmelinii sibirica laricina","ntb",{"$f":"Tabel3[[#This Row],[NAAM]]&$F$5&Tabel3[[#This Row],[KENMERK]]&$F$5&Tabel3[[#This Row],[TOEPASSING]]","v":"hout_lariks_ntb"},"i",1]
[{"$f":"SUBTOTAL(3,$F$7:F93)","v":87},"hout","mahonie","hout mahonie loofhout hardhout meliaceae swietenia macrophylla king caoba mahogany mahagoni mogno mara mahonie acajou baywood caobilla","ntb",{"$f":"Tabel3[[#This Row],[NAAM]]&$F$5&Tabel3[[#This Row],[KENMERK]]&$F$5&Tabel3[[#This Row],[TOEPASSING]]","v":"hout_mahonie_ntb"},"i",1]
[{"$f":"SUBTOTAL(3,$F$7:F94)","v":88},"hout","masonite","hout masonite","ntb",{"$f":"Tabel3[[#This Row],[NAAM]]&$F$5&Tabel3[[#This Row],[KENMERK]]&$F$5&Tabel3[[#This Row],[TOEPASSING]]","v":"hout_masonite_ntb"},"i",4]
[{"$f":"SUBTOTAL(3,$F$7:F95)","v":89},"hout","mdf","hout mdf","ntb",{"$f":"Tabel3[[#This Row],[NAAM]]&$F$5&Tabel3[[#This Row],[KENMERK]]&$F$5&Tabel3[[#This Row],[TOEPASSING]]","v":"hout_mdf_ntb"},"i",4]
[{"$f":"SUBTOTAL(3,$F$7:F96)","v":90},"hout","meranti","hout meranti loofhout hardhout dipterocarpaceae madjau melebekan meranti merah","ntb",{"$f":"Tabel3[[#This Row],[NAAM]]&$F$5&Tabel3[[#This Row],[KENMERK]]&$F$5&Tabel3[[#This Row],[TOEPASSING]]","v":"hout_meranti_ntb"},"i",1]
[{"$f":"SUBTOTAL(3,$F$7:F97)","v":91},"hout","merbau","hout merbau loofhout hardhout leguminosae caesalpiniaceae solomon merbau tat-talun vesi ipil kayu besi moluks ijzerhout mirabow inzia hintsy kohu bendora kwila melila ivili kivoli vuvula lumpha lumpho lum-paw makamong go nuoc","ntb",{"$f":"Tabel3[[#This Row],[NAAM]]&$F$5&Tabel3[[#This Row],[KENMERK]]&$F$5&Tabel3[[#This Row],[TOEPASSING]]","v":"hout_merbau_ntb"},"i",1]
[{"$f":"SUBTOTAL(3,$F$7:F98)","v":92},"hout","multiplex","hout multiplex","ntb",{"$f":"Tabel3[[#This Row],[NAAM]]&$F$5&Tabel3[[#This Row],[KENMERK]]&$F$5&Tabel3[[#This Row],[TOEPASSING]]","v":"hout_multiplex_ntb"},"i",4]
[{"$f":"SUBTOTAL(3,$F$7:F99)","v":93},"hout","noten","hout noten notenhout loofhout hardhout juglandaceae juglans regia nigra neotropica diels walnoot walnuss walnut nogal criollo nogal silvestre nuez meca ","ntb",{"$f":"Tabel3[[#This Row],[NAAM]]&$F$5&Tabel3[[#This Row],[KENMERK]]&$F$5&Tabel3[[#This Row],[TOEPASSING]]","v":"hout_noten_ntb"},"i",1]
[{"$f":"SUBTOTAL(3,$F$7:F100)","v":94},"hout","okoume","hout okoume okoumé loofhout hardhout burseraceae aucoumea klaineana pierre n'kumi n'koumi zonga angouma moukoumi n'koumi okoumè okumè gaboon samara","ntb",{"$f":"Tabel3[[#This Row],[NAAM]]&$F$5&Tabel3[[#This Row],[KENMERK]]&$F$5&Tabel3[[#This Row],[TOEPASSING]]","v":"hout_okoume_ntb"},"i",1]
[{"$f":"SUBTOTAL(3,$F$7:F101)","v":95},"hout","osb","hout osb","ntb",{"$f":"Tabel3[[#This Row],[NAAM]]&$F$5&Tabel3[[#This Row],[KENMERK]]&$F$5&Tabel3[[#This Row],[TOEPASSING]]","v":"hout_osb_ntb"},"i",4]
[{"$f":"SUBTOTAL(3,$F$7:F102)","v":96},"hout","populieren","hout populieren populierenhout loofhout zachthout salicaceae pappel peuplier poplar abeel ratelpopulier trilpopulier aspen algranzwart cottonwood balsempopulieren tacamahac populus alba populus tremula populus tremuloides grandidentata populus canescens alba grandidentata tremula deltoides nigrag uinier balsamifera laurifolia ledeb","ntb",{"$f":"Tabel3[[#This Row],[NAAM]]&$F$5&Tabel3[[#This Row],[KENMERK]]&$F$5&Tabel3[[#This Row],[TOEPASSING]]","v":"hout_populieren_ntb"},"i",1]
[{"$f":"SUBTOTAL(3,$F$7:F103)","v":97},"hout","spaanplaat","hout spaanplaat houtspaan","ntb",{"$f":"Tabel3[[#This Row],[NAAM]]&$F$5&Tabel3[[#This Row],[KENMERK]]&$F$5&Tabel3[[#This Row],[TOEPASSING]]","v":"hout_spaanplaat_ntb"},"i",4]
[{"$f":"SUBTOTAL(3,$F$7:F104)","v":98},"hout","triplex","hout triplex","ntb",{"$f":"Tabel3[[#This Row],[NAAM]]&$F$5&Tabel3[[#This Row],[KENMERK]]&$F$5&Tabel3[[#This Row],[TOEPASSING]]","v":"hout_triplex_ntb"},"i",4]
[{"$f":"SUBTOTAL(3,$F$7:F105)","v":99},"hout","vuren","hout vuren vurenhout naaldhout zachthout fijnspar pinaceae picea abies karst fichte gewone-spar archangel epicéa rottanne haselfichte kuusi epicéa sapin-blanc spruce whitewood white deal abete rosso picea omorika gran","ntb",{"$f":"Tabel3[[#This Row],[NAAM]]&$F$5&Tabel3[[#This Row],[KENMERK]]&$F$5&Tabel3[[#This Row],[TOEPASSING]]","v":"hout_vuren_ntb"},"i",1]
[{"$f":"SUBTOTAL(3,$F$7:F106)","v":100},"hout","wenge","hout wenge wengé loofhout hardhout millettia laurentii leguminosae papilionaceae millettia laurentii stuhlmannii taub awong n'toko n'gondou anong n'son-so mboto bokonge dikala-kala tshikalakala dikela kiboto monkonge mundamb jambire pangire m'pande mpanga panga panga","ntb",{"$f":"Tabel3[[#This Row],[NAAM]]&$F$5&Tabel3[[#This Row],[KENMERK]]&$F$5&Tabel3[[#This Row],[TOEPASSING]]","v":"hout_wenge_ntb"},"i",1]
[{"$f":"SUBTOTAL(3,$F$7:F107)","v":101},"hout","ceder","hout western-red-ceder red cedar cederhout ceder loofhout hardhout thuja plicata reuzenlevensboom cedrela odorata libanonceder cedrus libani cipresfamilie cupressaceae conifeer meliaceae cedrela cedar cigar box cedar cédrat cèdre acajou cedro suren surian toon calantas cedrela odorata fissilis","ntb",{"$f":"Tabel3[[#This Row],[NAAM]]&$F$5&Tabel3[[#This Row],[KENMERK]]&$F$5&Tabel3[[#This Row],[TOEPASSING]]","v":"hout_ceder_ntb"},"i",1]
[{"$f":"SUBTOTAL(3,$F$7:F108)","v":102},"hout","zaagsel","hout zaagsel","ntb",{"$f":"Tabel3[[#This Row],[NAAM]]&$F$5&Tabel3[[#This Row],[KENMERK]]&$F$5&Tabel3[[#This Row],[TOEPASSING]]","v":"hout_zaagsel_ntb"},"i",4]
[{"$f":"SUBTOTAL(3,$F$7:F109)","v":103},"hout","zachtboard","hout zachtboard","ntb",{"$f":"Tabel3[[#This Row],[NAAM]]&$F$5&Tabel3[[#This Row],[KENMERK]]&$F$5&Tabel3[[#This Row],[TOEPASSING]]","v":"hout_zachtboard_ntb"},"i",4]
[{"$f":"SUBTOTAL(3,$F$7:F110)","v":104},"hout","zachthout","hout zachthout naaldhout vurenhout","ntb",{"$f":"Tabel3[[#This Row],[NAAM]]&$F$5&Tabel3[[#This Row],[KENMERK]]&$F$5&Tabel3[[#This Row],[TOEPASSING]]","v":"hout_zachthout_ntb"},"i",1]
[{"$f":"SUBTOTAL(3,$F$7:F111)","v":105},"isolatie","ntb","isolatie ntb nog te bepalen weet niet ontwerp geen idee overig","ntb",{"$f":"Tabel3[[#This Row],[NAAM]]&$F$5&Tabel3[[#This Row],[KENMERK]]&$F$5&Tabel3[[#This Row],[TOEPASSING]]","v":"isolatie_ntb_ntb"}]
[{"$f":"SUBTOTAL(3,$F$7:F112)","v":106},"isolatie","generiek","isolatie generiek ontwerp algemeen willekeurig van alles iets ","ntb",{"$f":"Tabel3[[#This Row],[NAAM]]&$F$5&Tabel3[[#This Row],[KENMERK]]&$F$5&Tabel3[[#This Row],[TOEPASSING]]","v":"isolatie_generiek_ntb"},"m"]
[{"$f":"SUBTOTAL(3,$F$7:F113)","v":107},"isolatie","eps","isolatie eps geëxpandeerd polystyreen","ntb",{"$f":"Tabel3[[#This Row],[NAAM]]&$F$5&Tabel3[[#This Row],[KENMERK]]&$F$5&Tabel3[[#This Row],[TOEPASSING]]","v":"isolatie_eps_ntb"},"n",7]
[{"$f":"SUBTOTAL(3,$F$7:F114)","v":108},"isolatie","fenolhars","isolatie fenolhars kunsthars bakeliet","ntb",{"$f":"Tabel3[[#This Row],[NAAM]]&$F$5&Tabel3[[#This Row],[KENMERK]]&$F$5&Tabel3[[#This Row],[TOEPASSING]]","v":"isolatie_fenolhars_ntb"},"n",7]
[{"$f":"SUBTOTAL(3,$F$7:F115)","v":109},"isolatie","glaswol","isolatie minerale-wol","ntb",{"$f":"Tabel3[[#This Row],[NAAM]]&$F$5&Tabel3[[#This Row],[KENMERK]]&$F$5&Tabel3[[#This Row],[TOEPASSING]]","v":"isolatie_glaswol_ntb"},"o",9]
[{"$f":"SUBTOTAL(3,$F$7:F116)","v":110},"isolatie","geexpandeerd-perliet","isolatie geexpandeerd-perliet","ntb",{"$f":"Tabel3[[#This Row],[NAAM]]&$F$5&Tabel3[[#This Row],[KENMERK]]&$F$5&Tabel3[[#This Row],[TOEPASSING]]","v":"isolatie_geexpandeerd-perliet_ntb"},"o",9]
[{"$f":"SUBTOTAL(3,$F$7:F117)","v":111},"isolatie","hardschuim","isolatie hardschuim eps pe pf pir ps pvc geëxpandeerd polystyreen styreen ethyleen spouwplaat dakisolatie kunststof piepschuim","ntb",{"$f":"Tabel3[[#This Row],[NAAM]]&$F$5&Tabel3[[#This Row],[KENMERK]]&$F$5&Tabel3[[#This Row],[TOEPASSING]]","v":"isolatie_hardschuim_ntb"},"o",9]
[{"$f":"SUBTOTAL(3,$F$7:F118)","v":112},"isolatie","mineralewol","isolatie mineralewol","ntb",{"$f":"Tabel3[[#This Row],[NAAM]]&$F$5&Tabel3[[#This Row],[KENMERK]]&$F$5&Tabel3[[#This Row],[TOEPASSING]]","v":"isolatie_mineralewol_ntb"},"m",1]
[{"$f":"SUBTOTAL(3,$F$7:F119)","v":113},"isolatie","mineraal","isolatie mineraal","ntb",{"$f":"Tabel3[[#This Row],[NAAM]]&$F$5&Tabel3[[#This Row],[KENMERK]]&$F$5&Tabel3[[#This Row],[TOEPASSING]]","v":"isolatie_mineraal_ntb"},"m"]
[{"$f":"SUBTOTAL(3,$F$7:F121)","v":115},"isolatie","resolschuim","isolatie resolschuim pf fenolschuim phenol formaldehyde","ntb",{"$f":"Tabel3[[#This Row],[NAAM]]&$F$5&Tabel3[[#This Row],[KENMERK]]&$F$5&Tabel3[[#This Row],[TOEPASSING]]","v":"isolatie_resolschuim_ntb"}]
[{"$f":"SUBTOTAL(3,$F$7:F121)","v":115},"isolatie","siliperliet","isolatie sili-perliet perliet op siliconen basis","ntb",{"$f":"Tabel3[[#This Row],[NAAM]]&$F$5&Tabel3[[#This Row],[KENMERK]]&$F$5&Tabel3[[#This Row],[TOEPASSING]]","v":"isolatie_siliperliet_ntb"},"e",1]
[{"$f":"SUBTOTAL(3,$F$7:F122)","v":116},"isolatie","pir","isolatie pir polyisocyanuraat","ntb",{"$f":"Tabel3[[#This Row],[NAAM]]&$F$5&Tabel3[[#This Row],[KENMERK]]&$F$5&Tabel3[[#This Row],[TOEPASSING]]","v":"isolatie_pir_ntb"},"n",7]
[{"$f":"SUBTOTAL(3,$F$7:F123)","v":117},"isolatie","pur","isolatie pur polyurethaan","ntb",{"$f":"Tabel3[[#This Row],[NAAM]]&$F$5&Tabel3[[#This Row],[KENMERK]]&$F$5&Tabel3[[#This Row],[TOEPASSING]]","v":"isolatie_pur_ntb"},"n",7]
[{"$f":"SUBTOTAL(3,$F$7:F124)","v":118},"isolatie","solperlite","isolatie perliet gebitumineerd solperlite","ntb",{"$f":"Tabel3[[#This Row],[NAAM]]&$F$5&Tabel3[[#This Row],[KENMERK]]&$F$5&Tabel3[[#This Row],[TOEPASSING]]","v":"isolatie_solperlite_ntb"}]
[{"$f":"SUBTOTAL(3,$F$7:F125)","v":119},"isolatie","steenwol","steenwol","ntb",{"$f":"Tabel3[[#This Row],[NAAM]]&$F$5&Tabel3[[#This Row],[KENMERK]]&$F$5&Tabel3[[#This Row],[TOEPASSING]]","v":"isolatie_steenwol_ntb"},"o",9]
[{"$f":"SUBTOTAL(3,$F$7:F126)","v":120},"isolatie","xps","isolatie xps geëxtrudeerd polystyreen","ntb",{"$f":"Tabel3[[#This Row],[NAAM]]&$F$5&Tabel3[[#This Row],[KENMERK]]&$F$5&Tabel3[[#This Row],[TOEPASSING]]","v":"isolatie_xps_ntb"},"n",7]
[{"$f":"SUBTOTAL(3,$F$7:F127)","v":121},"kunststof","ntb","kunststof ntb nog te bepalen weet niet ontwerp geen idee overig","ntb",{"$f":"Tabel3[[#This Row],[NAAM]]&$F$5&Tabel3[[#This Row],[KENMERK]]&$F$5&Tabel3[[#This Row],[TOEPASSING]]","v":"kunststof_ntb_ntb"},"n"]
[{"$f":"SUBTOTAL(3,$F$7:F128)","v":122},"kunststof","generiek","kunststof generiek ontwerp algemeen willekeurig van alles iets ","ntb",{"$f":"Tabel3[[#This Row],[NAAM]]&$F$5&Tabel3[[#This Row],[KENMERK]]&$F$5&Tabel3[[#This Row],[TOEPASSING]]","v":"kunststof_generiek_ntb"},"n"]
[{"$f":"SUBTOTAL(3,$F$7:F129)","v":123},"kunststof","abs","kunststof abs acrylonitril butadieen styreen polymeren","ntb",{"$f":"Tabel3[[#This Row],[NAAM]]&$F$5&Tabel3[[#This Row],[KENMERK]]&$F$5&Tabel3[[#This Row],[TOEPASSING]]","v":"kunststof_abs_ntb"},"n",6]
[{"$f":"SUBTOTAL(3,$F$7:F130)","v":124},"kunststof","aeryl","kunststof aeryl","ntb",{"$f":"Tabel3[[#This Row],[NAAM]]&$F$5&Tabel3[[#This Row],[KENMERK]]&$F$5&Tabel3[[#This Row],[TOEPASSING]]","v":"kunststof_aeryl_ntb"},"n",6]
[{"$f":"SUBTOTAL(3,$F$7:F131)","v":125},"kunststof","dpc","kunststof dpc waterdichte dampopen high density poyethylene","ntb",{"$f":"Tabel3[[#This Row],[NAAM]]&$F$5&Tabel3[[#This Row],[KENMERK]]&$F$5&Tabel3[[#This Row],[TOEPASSING]]","v":"kunststof_dpc_ntb"},"n",6]
[{"$f":"SUBTOTAL(3,$F$7:F132)","v":126},"kunststof","elastomere-foam","kunststof elastomere-foam","ntb",{"$f":"Tabel3[[#This Row],[NAAM]]&$F$5&Tabel3[[#This Row],[KENMERK]]&$F$5&Tabel3[[#This Row],[TOEPASSING]]","v":"kunststof_elastomere-foam_ntb"},"n",5]
[{"$f":"SUBTOTAL(3,$F$7:F133)","v":127},"kunststof","ep","kunststof ep epoxy","ntb",{"$f":"Tabel3[[#This Row],[NAAM]]&$F$5&Tabel3[[#This Row],[KENMERK]]&$F$5&Tabel3[[#This Row],[TOEPASSING]]","v":"kunststof_ep_ntb"}]
[{"$f":"SUBTOTAL(3,$F$7:F134)","v":128},"kunststof","epoxyhars","kunststof epoxyhars","ntb",{"$f":"Tabel3[[#This Row],[NAAM]]&$F$5&Tabel3[[#This Row],[KENMERK]]&$F$5&Tabel3[[#This Row],[TOEPASSING]]","v":"kunststof_epoxyhars_ntb"},"n",6]
[{"$f":"SUBTOTAL(3,$F$7:F135)","v":129},"kunststof","hard-kunststof","kunststof hard kunststof pe pvc","ntb",{"$f":"Tabel3[[#This Row],[NAAM]]&$F$5&Tabel3[[#This Row],[KENMERK]]&$F$5&Tabel3[[#This Row],[TOEPASSING]]","v":"kunststof_hard-kunststof_ntb"},"n",6]
[{"$f":"SUBTOTAL(3,$F$7:F136)","v":130},"kunststof","hdpe","kunststof hdpe polyethyleen high density poyethylene","ntb",{"$f":"Tabel3[[#This Row],[NAAM]]&$F$5&Tabel3[[#This Row],[KENMERK]]&$F$5&Tabel3[[#This Row],[TOEPASSING]]","v":"kunststof_hdpe_ntb"},"n",6]
[{"$f":"SUBTOTAL(3,$F$7:F137)","v":131},"kunststof","hmpe","kunststof hdmpe polyethyleen","ntb",{"$f":"Tabel3[[#This Row],[NAAM]]&$F$5&Tabel3[[#This Row],[KENMERK]]&$F$5&Tabel3[[#This Row],[TOEPASSING]]","v":"kunststof_hmpe_ntb"},"n",6]
[{"$f":"SUBTOTAL(3,$F$7:F138)","v":132},"kunststof","hpl","kunststof hpl high pressure laminate phenolhars","ntb",{"$f":"Tabel3[[#This Row],[NAAM]]&$F$5&Tabel3[[#This Row],[KENMERK]]&$F$5&Tabel3[[#This Row],[TOEPASSING]]","v":"kunststof_hpl_ntb"},"n",6]
[{"$f":"SUBTOTAL(3,$F$7:F139)","v":133},"kunststof","ldpe","kunststof ldpe lage dichtheid polyetheen polyethene","ntb",{"$f":"Tabel3[[#This Row],[NAAM]]&$F$5&Tabel3[[#This Row],[KENMERK]]&$F$5&Tabel3[[#This Row],[TOEPASSING]]","v":"kunststof_ldpe_ntb"},"n",6]
[{"$f":"SUBTOTAL(3,$F$7:F140)","v":134},"kunststof","loodvervanger","kunststof loodvervanger loodslabbe slabbe metaal gewapend epdm vinyl aluminium bitumen leadax ubiflex wakaflex vezelversterkt composiet polymeer","ntb",{"$f":"Tabel3[[#This Row],[NAAM]]&$F$5&Tabel3[[#This Row],[KENMERK]]&$F$5&Tabel3[[#This Row],[TOEPASSING]]","v":"kunststof_loodvervanger_ntb"},"n",6]
[{"$f":"SUBTOTAL(3,$F$7:F141)","v":135},"kunststof","pe","kunststof pe polyetheen polyethene","ntb",{"$f":"Tabel3[[#This Row],[NAAM]]&$F$5&Tabel3[[#This Row],[KENMERK]]&$F$5&Tabel3[[#This Row],[TOEPASSING]]","v":"kunststof_pe_ntb"},"n",6]
[{"$f":"SUBTOTAL(3,$F$7:F142)","v":136},"kunststof","pmma","kunststof pmma acrylaat polymethylacrylaat","ntb",{"$f":"Tabel3[[#This Row],[NAAM]]&$F$5&Tabel3[[#This Row],[KENMERK]]&$F$5&Tabel3[[#This Row],[TOEPASSING]]","v":"kunststof_pmma_ntb"},"n",6]
[{"$f":"SUBTOTAL(3,$F$7:F143)","v":137},"kunststof","pvac","kunststof pvac polyacetaat","ntb",{"$f":"Tabel3[[#This Row],[NAAM]]&$F$5&Tabel3[[#This Row],[KENMERK]]&$F$5&Tabel3[[#This Row],[TOEPASSING]]","v":"kunststof_pvac_ntb"},"t",3]
[{"$f":"SUBTOTAL(3,$F$7:F144)","v":138},"kunststof","pa","kunststof pa polyamide nylon","ntb",{"$f":"Tabel3[[#This Row],[NAAM]]&$F$5&Tabel3[[#This Row],[KENMERK]]&$F$5&Tabel3[[#This Row],[TOEPASSING]]","v":"kunststof_pa_ntb"},"n",6]
[{"$f":"SUBTOTAL(3,$F$7:F145)","v":139},"kunststof","pc","kunststof pc polycarbonaat","ntb",{"$f":"Tabel3[[#This Row],[NAAM]]&$F$5&Tabel3[[#This Row],[KENMERK]]&$F$5&Tabel3[[#This Row],[TOEPASSING]]","v":"kunststof_pc_ntb"},"n",6]
[{"$f":"SUBTOTAL(3,$F$7:F146)","v":140},"kunststof","pctfe","kunststof pcfte polychloortrifluorethyleen","ntb",{"$f":"Tabel3[[#This Row],[NAAM]]&$F$5&Tabel3[[#This Row],[KENMERK]]&$F$5&Tabel3[[#This Row],[TOEPASSING]]","v":"kunststof_pctfe_ntb"},"n",6]
[{"$f":"SUBTOTAL(3,$F$7:F147)","v":141},"kunststof","plexiglas","kunststof plexiglas","ntb",{"$f":"Tabel3[[#This Row],[NAAM]]&$F$5&Tabel3[[#This Row],[KENMERK]]&$F$5&Tabel3[[#This Row],[TOEPASSING]]","v":"kunststof_plexiglas_ntb"},"n",6]
[{"$f":"SUBTOTAL(3,$F$7:F148)","v":142},"kunststof","polyesterhars","kunststof polyesterhars","ntb",{"$f":"Tabel3[[#This Row],[NAAM]]&$F$5&Tabel3[[#This Row],[KENMERK]]&$F$5&Tabel3[[#This Row],[TOEPASSING]]","v":"kunststof_polyesterhars_ntb"},"v",5]
[{"$f":"SUBTOTAL(3,$F$7:F149)","v":143},"kunststof","polyester","kunststof polyester","ntb",{"$f":"Tabel3[[#This Row],[NAAM]]&$F$5&Tabel3[[#This Row],[KENMERK]]&$F$5&Tabel3[[#This Row],[TOEPASSING]]","v":"kunststof_polyester_ntb"},"n",6]
[{"$f":"SUBTOTAL(3,$F$7:F150)","v":144},"kunststof","pp","kunststof pp  polypropyleen polypropeen","ntb",{"$f":"Tabel3[[#This Row],[NAAM]]&$F$5&Tabel3[[#This Row],[KENMERK]]&$F$5&Tabel3[[#This Row],[TOEPASSING]]","v":"kunststof_pp_ntb"},"n",7]
[{"$f":"SUBTOTAL(3,$F$7:F151)","v":145},"kunststof","ps","kunststof ps polystyreen","ntb",{"$f":"Tabel3[[#This Row],[NAAM]]&$F$5&Tabel3[[#This Row],[KENMERK]]&$F$5&Tabel3[[#This Row],[TOEPASSING]]","v":"kunststof_ps_ntb"},"n",7]
[{"$f":"SUBTOTAL(3,$F$7:F152)","v":146},"kunststof","ptfe","kunststof ptfe polytetrafluorethyleen","ntb",{"$f":"Tabel3[[#This Row],[NAAM]]&$F$5&Tabel3[[#This Row],[KENMERK]]&$F$5&Tabel3[[#This Row],[TOEPASSING]]","v":"kunststof_ptfe_ntb"},"n",6]
[{"$f":"SUBTOTAL(3,$F$7:F153)","v":147},"kunststof","pu","kunststof pu polyurethaan","ntb",{"$f":"Tabel3[[#This Row],[NAAM]]&$F$5&Tabel3[[#This Row],[KENMERK]]&$F$5&Tabel3[[#This Row],[TOEPASSING]]","v":"kunststof_pu_ntb"},"n",6]
[{"$f":"SUBTOTAL(3,$F$7:F154)","v":148},"kunststof","pvac","kunststof pvac polyvinylacetaat witte houtlijm","ntb",{"$f":"Tabel3[[#This Row],[NAAM]]&$F$5&Tabel3[[#This Row],[KENMERK]]&$F$5&Tabel3[[#This Row],[TOEPASSING]]","v":"kunststof_pvac_ntb"},"n",6]
[{"$f":"SUBTOTAL(3,$F$7:F155)","v":149},"kunststof","pvc","kunststof pvc polyvinychloride vinyl","ntb",{"$f":"Tabel3[[#This Row],[NAAM]]&$F$5&Tabel3[[#This Row],[KENMERK]]&$F$5&Tabel3[[#This Row],[TOEPASSING]]","v":"kunststof_pvc_ntb"},"n",6]
[{"$f":"SUBTOTAL(3,$F$7:F156)","v":150},"kunststof","zacht-kunststof","kunststof zacht kunststof dpc ","ntb",{"$f":"Tabel3[[#This Row],[NAAM]]&$F$5&Tabel3[[#This Row],[KENMERK]]&$F$5&Tabel3[[#This Row],[TOEPASSING]]","v":"kunststof_zacht-kunststof_ntb"},"n",6]
[{"$f":"SUBTOTAL(3,$F$7:F157)","v":151},"kunststof","silicagel","kunststof silicagel","ntb",{"$f":"Tabel3[[#This Row],[NAAM]]&$F$5&Tabel3[[#This Row],[KENMERK]]&$F$5&Tabel3[[#This Row],[TOEPASSING]]","v":"kunststof_silicagel_ntb"},"m",1]
[{"$f":"SUBTOTAL(3,$F$7:F158)","v":152},"kunststof","siliconen","kunststof siliconen","ntb",{"$f":"Tabel3[[#This Row],[NAAM]]&$F$5&Tabel3[[#This Row],[KENMERK]]&$F$5&Tabel3[[#This Row],[TOEPASSING]]","v":"kunststof_siliconen_ntb"},"n",5]
[{"$f":"SUBTOTAL(3,$F$7:F159)","v":153},"metaal","ntb","metaal ntb nog te bepalen weet niet ontwerp geen idee overig","ntb",{"$f":"Tabel3[[#This Row],[NAAM]]&$F$5&Tabel3[[#This Row],[KENMERK]]&$F$5&Tabel3[[#This Row],[TOEPASSING]]","v":"metaal_ntb_ntb"},"h"]
[{"$f":"SUBTOTAL(3,$F$7:F160)","v":154},"metaal","generiek","metaal generiek ontwerp algemeen willekeurig van alles iets ","ntb",{"$f":"Tabel3[[#This Row],[NAAM]]&$F$5&Tabel3[[#This Row],[KENMERK]]&$F$5&Tabel3[[#This Row],[TOEPASSING]]","v":"metaal_generiek_ntb"},"h"]
[{"$f":"SUBTOTAL(3,$F$7:F161)","v":155},"metaal","aluminium","metaal aluminium ai","ntb",{"$f":"Tabel3[[#This Row],[NAAM]]&$F$5&Tabel3[[#This Row],[KENMERK]]&$F$5&Tabel3[[#This Row],[TOEPASSING]]","v":"metaal_aluminium_ntb"},"h",4]
[{"$f":"SUBTOTAL(3,$F$7:F162)","v":156},"metaal","brons","metaal brons","ntb",{"$f":"Tabel3[[#This Row],[NAAM]]&$F$5&Tabel3[[#This Row],[KENMERK]]&$F$5&Tabel3[[#This Row],[TOEPASSING]]","v":"metaal_brons_ntb"},"h",9]
[{"$f":"SUBTOTAL(3,$F$7:F163)","v":157},"metaal","chroom","metaal chroom","ntb",{"$f":"Tabel3[[#This Row],[NAAM]]&$F$5&Tabel3[[#This Row],[KENMERK]]&$F$5&Tabel3[[#This Row],[TOEPASSING]]","v":"metaal_chroom_ntb"},"h",9]
[{"$f":"SUBTOTAL(3,$F$7:F164)","v":158},"metaal","gietijzer","metaal gietijzer","ntb",{"$f":"Tabel3[[#This Row],[NAAM]]&$F$5&Tabel3[[#This Row],[KENMERK]]&$F$5&Tabel3[[#This Row],[TOEPASSING]]","v":"metaal_gietijzer_ntb"},"h",1]
[{"$f":"SUBTOTAL(3,$F$7:F165)","v":159},"metaal","goud","metaal goud","ntb",{"$f":"Tabel3[[#This Row],[NAAM]]&$F$5&Tabel3[[#This Row],[KENMERK]]&$F$5&Tabel3[[#This Row],[TOEPASSING]]","v":"metaal_goud_ntb"},"h",1]
[{"$f":"SUBTOTAL(3,$F$7:F166)","v":160},"metaal","ijzer","metaal ijzer","ntb",{"$f":"Tabel3[[#This Row],[NAAM]]&$F$5&Tabel3[[#This Row],[KENMERK]]&$F$5&Tabel3[[#This Row],[TOEPASSING]]","v":"metaal_ijzer_ntb"},"h",1]
[{"$f":"SUBTOTAL(3,$F$7:F167)","v":161},"metaal","koper","metaal koper","ntb",{"$f":"Tabel3[[#This Row],[NAAM]]&$F$5&Tabel3[[#This Row],[KENMERK]]&$F$5&Tabel3[[#This Row],[TOEPASSING]]","v":"metaal_koper_ntb"},"h",5]
[{"$f":"SUBTOTAL(3,$F$7:F168)","v":162},"metaal","lood","metaal lood","ntb",{"$f":"Tabel3[[#This Row],[NAAM]]&$F$5&Tabel3[[#This Row],[KENMERK]]&$F$5&Tabel3[[#This Row],[TOEPASSING]]","v":"metaal_lood_ntb"},"h",8]
[{"$f":"SUBTOTAL(3,$F$7:F169)","v":163},"metaal","messing","metaal messing","ntb",{"$f":"Tabel3[[#This Row],[NAAM]]&$F$5&Tabel3[[#This Row],[KENMERK]]&$F$5&Tabel3[[#This Row],[TOEPASSING]]","v":"metaal_messing_ntb"},"h",6]
[{"$f":"SUBTOTAL(3,$F$7:F170)","v":164},"metaal","platina","metaal platina","ntb",{"$f":"Tabel3[[#This Row],[NAAM]]&$F$5&Tabel3[[#This Row],[KENMERK]]&$F$5&Tabel3[[#This Row],[TOEPASSING]]","v":"metaal_platina_ntb"},"h",3]
[{"$f":"SUBTOTAL(3,$F$7:F171)","v":165},"metaal","rvs","metaal rvs roestvaststaal verzinkt ehandeld gegalvaniseerd ","ntb",{"$f":"Tabel3[[#This Row],[NAAM]]&$F$5&Tabel3[[#This Row],[KENMERK]]&$F$5&Tabel3[[#This Row],[TOEPASSING]]","v":"metaal_rvs_ntb"},"h",3]
[{"$f":"SUBTOTAL(3,$F$7:F172)","v":166},"metaal","soldeersel","metaal soldeersel","ntb",{"$f":"Tabel3[[#This Row],[NAAM]]&$F$5&Tabel3[[#This Row],[KENMERK]]&$F$5&Tabel3[[#This Row],[TOEPASSING]]","v":"metaal_soldeersel_ntb"},"h",2]
[{"$f":"SUBTOTAL(3,$F$7:F173)","v":167},"metaal","staal","metaal staal verzinkt behandeld gegalvaniseerd thermisch koud gewalst warm ","ntb",{"$f":"Tabel3[[#This Row],[NAAM]]&$F$5&Tabel3[[#This Row],[KENMERK]]&$F$5&Tabel3[[#This Row],[TOEPASSING]]","v":"metaal_staal_ntb"},"h",2]
[{"$f":"SUBTOTAL(3,$F$7:F174)","v":168},"metaal","tin","metaal tin","ntb",{"$f":"Tabel3[[#This Row],[NAAM]]&$F$5&Tabel3[[#This Row],[KENMERK]]&$F$5&Tabel3[[#This Row],[TOEPASSING]]","v":"metaal_tin_ntb"},"h",2]
[{"$f":"SUBTOTAL(3,$F$7:F175)","v":169},"metaal","titanium","metaal titanium","ntb",{"$f":"Tabel3[[#This Row],[NAAM]]&$F$5&Tabel3[[#This Row],[KENMERK]]&$F$5&Tabel3[[#This Row],[TOEPASSING]]","v":"metaal_titanium_ntb"},"h",7]
[{"$f":"SUBTOTAL(3,$F$7:F176)","v":170},"metaal","zilver","metaal zilver","ntb",{"$f":"Tabel3[[#This Row],[NAAM]]&$F$5&Tabel3[[#This Row],[KENMERK]]&$F$5&Tabel3[[#This Row],[TOEPASSING]]","v":"metaal_zilver_ntb"},"h",7]
[{"$f":"SUBTOTAL(3,$F$7:F177)","v":171},"metaal","zink","metaal zink","ntb",{"$f":"Tabel3[[#This Row],[NAAM]]&$F$5&Tabel3[[#This Row],[KENMERK]]&$F$5&Tabel3[[#This Row],[TOEPASSING]]","v":"metaal_zink_ntb"},"h",7]
[{"$f":"SUBTOTAL(3,$F$7:F178)","v":172},"natuursteen","ntb","natuursteen ntb nog te bepalen weet niet ontwerp geen idee overig","ntb",{"$f":"Tabel3[[#This Row],[NAAM]]&$F$5&Tabel3[[#This Row],[KENMERK]]&$F$5&Tabel3[[#This Row],[TOEPASSING]]","v":"natuursteen_ntb_ntb"},"e",1]
[{"$f":"SUBTOTAL(3,$F$7:F179)","v":173},"natuursteen","generiek","natuursteen generiek ontwerp algemeen willekeurig van alles iets ","ntb",{"$f":"Tabel3[[#This Row],[NAAM]]&$F$5&Tabel3[[#This Row],[KENMERK]]&$F$5&Tabel3[[#This Row],[TOEPASSING]]","v":"natuursteen_generiek_ntb"},"e",1]
[{"$f":"SUBTOTAL(3,$F$7:F180)","v":174},"natuursteen","asbest","natuursteen asbest","ntb",{"$f":"Tabel3[[#This Row],[NAAM]]&$F$5&Tabel3[[#This Row],[KENMERK]]&$F$5&Tabel3[[#This Row],[TOEPASSING]]","v":"natuursteen_asbest_ntb"},"e",1]
[{"$f":"SUBTOTAL(3,$F$7:F181)","v":175},"natuursteen","basalt","natuursteen basalt","ntb",{"$f":"Tabel3[[#This Row],[NAAM]]&$F$5&Tabel3[[#This Row],[KENMERK]]&$F$5&Tabel3[[#This Row],[TOEPASSING]]","v":"natuursteen_basalt_ntb"},"e",1]
[{"$f":"SUBTOTAL(3,$F$7:F182)","v":176},"natuursteen","gneiss","natuursteen gneiss","ntb",{"$f":"Tabel3[[#This Row],[NAAM]]&$F$5&Tabel3[[#This Row],[KENMERK]]&$F$5&Tabel3[[#This Row],[TOEPASSING]]","v":"natuursteen_gneiss_ntb"},"e"]
[{"$f":"SUBTOTAL(3,$F$7:F183)","v":177},"natuursteen","graniet","natuursteen graniet","ntb",{"$f":"Tabel3[[#This Row],[NAAM]]&$F$5&Tabel3[[#This Row],[KENMERK]]&$F$5&Tabel3[[#This Row],[TOEPASSING]]","v":"natuursteen_graniet_ntb"},"e",9]
[{"$f":"SUBTOTAL(3,$F$7:F184)","v":178},"natuursteen","gravel","natuursteen gravel","ntb",{"$f":"Tabel3[[#This Row],[NAAM]]&$F$5&Tabel3[[#This Row],[KENMERK]]&$F$5&Tabel3[[#This Row],[TOEPASSING]]","v":"natuursteen_gravel_ntb"},"e"]
[{"$f":"SUBTOTAL(3,$F$7:F185)","v":179},"natuursteen","hardsteen","natuursteen hardsteen","ntb",{"$f":"Tabel3[[#This Row],[NAAM]]&$F$5&Tabel3[[#This Row],[KENMERK]]&$F$5&Tabel3[[#This Row],[TOEPASSING]]","v":"natuursteen_hardsteen_ntb"},"e"]
[{"$f":"SUBTOTAL(3,$F$7:F186)","v":180},"natuursteen","kristallijn-gesteente","natuursteen kristallijn-gesteente","ntb",{"$f":"Tabel3[[#This Row],[NAAM]]&$F$5&Tabel3[[#This Row],[KENMERK]]&$F$5&Tabel3[[#This Row],[TOEPASSING]]","v":"natuursteen_kristallijn-gesteente_ntb"},"e"]
[{"$f":"SUBTOTAL(3,$F$7:F187)","v":181},"natuursteen","kwartsiet","natuursteen kwartsiet","ntb",{"$f":"Tabel3[[#This Row],[NAAM]]&$F$5&Tabel3[[#This Row],[KENMERK]]&$F$5&Tabel3[[#This Row],[TOEPASSING]]","v":"natuursteen_kwartsiet_ntb"},"e",5]
[{"$f":"SUBTOTAL(3,$F$7:F188)","v":182},"natuursteen","lei","natuursteen lei","ntb",{"$f":"Tabel3[[#This Row],[NAAM]]&$F$5&Tabel3[[#This Row],[KENMERK]]&$F$5&Tabel3[[#This Row],[TOEPASSING]]","v":"natuursteen_lei_ntb"},"e",5]
[{"$f":"SUBTOTAL(3,$F$7:F189)","v":183},"natuursteen","marmer","natuursteen marmer","ntb",{"$f":"Tabel3[[#This Row],[NAAM]]&$F$5&Tabel3[[#This Row],[KENMERK]]&$F$5&Tabel3[[#This Row],[TOEPASSING]]","v":"natuursteen_marmer_ntb"},"e",2]
[{"$f":"SUBTOTAL(3,$F$7:F190)","v":184},"natuursteen","poreus-gesteente","natuursteen poreus gesteente","ntb",{"$f":"Tabel3[[#This Row],[NAAM]]&$F$5&Tabel3[[#This Row],[KENMERK]]&$F$5&Tabel3[[#This Row],[TOEPASSING]]","v":"natuursteen_poreus-gesteente_ntb"},"e"]
[{"$f":"SUBTOTAL(3,$F$7:F191)","v":185},"natuursteen","puimsteen","natuursteen puimsteen","ntb",{"$f":"Tabel3[[#This Row],[NAAM]]&$F$5&Tabel3[[#This Row],[KENMERK]]&$F$5&Tabel3[[#This Row],[TOEPASSING]]","v":"natuursteen_puimsteen_ntb"},"e",1]
[{"$f":"SUBTOTAL(3,$F$7:F192)","v":186},"natuursteen","sedimentgesteente","natuursteen sedimentgesteente","ntb",{"$f":"Tabel3[[#This Row],[NAAM]]&$F$5&Tabel3[[#This Row],[KENMERK]]&$F$5&Tabel3[[#This Row],[TOEPASSING]]","v":"natuursteen_sedimentgesteente_ntb"},"e"]
[{"$f":"SUBTOTAL(3,$F$7:F193)","v":187},"natuursteen","trachiet","natuursteen trachiet","ntb",{"$f":"Tabel3[[#This Row],[NAAM]]&$F$5&Tabel3[[#This Row],[KENMERK]]&$F$5&Tabel3[[#This Row],[TOEPASSING]]","v":"natuursteen_trachiet_ntb"},"e"]
[{"$f":"SUBTOTAL(3,$F$7:F194)","v":188},"natuursteen","zandsteen","natuursteen zandsteen","ntb",{"$f":"Tabel3[[#This Row],[NAAM]]&$F$5&Tabel3[[#This Row],[KENMERK]]&$F$5&Tabel3[[#This Row],[TOEPASSING]]","v":"natuursteen_zandsteen_ntb"},"e",4]
[{"$f":"SUBTOTAL(3,$F$7:F195)","v":189},"ntb","ntb",null,"ntb",{"$f":"Tabel3[[#This Row],[NAAM]]&$F$5&Tabel3[[#This Row],[KENMERK]]&$F$5&Tabel3[[#This Row],[TOEPASSING]]","v":"ntb_ntb_ntb"}]
[{"$f":"SUBTOTAL(3,$F$7:F196)","v":190},"organisch","ntb","organisch ntb nog te bepalen weet niet ontwerp geen idee overig","ntb",{"$f":"Tabel3[[#This Row],[NAAM]]&$F$5&Tabel3[[#This Row],[KENMERK]]&$F$5&Tabel3[[#This Row],[TOEPASSING]]","v":"organisch_ntb_ntb"},"j"]
[{"$f":"SUBTOTAL(3,$F$7:F197)","v":191},"organisch","generiek","organisch generiek ontwerp algemeen willekeurig van alles iets ","ntb",{"$f":"Tabel3[[#This Row],[NAAM]]&$F$5&Tabel3[[#This Row],[KENMERK]]&$F$5&Tabel3[[#This Row],[TOEPASSING]]","v":"organisch_generiek_ntb"},"j"]
[{"$f":"SUBTOTAL(3,$F$7:F198)","v":192},"organisch","bamboe","organisch bamboe","ntb",{"$f":"Tabel3[[#This Row],[NAAM]]&$F$5&Tabel3[[#This Row],[KENMERK]]&$F$5&Tabel3[[#This Row],[TOEPASSING]]","v":"organisch_bamboe_ntb"},"j",3]
[{"$f":"SUBTOTAL(3,$F$7:F199)","v":193},"organisch","hennep","organisch hennep","ntb",{"$f":"Tabel3[[#This Row],[NAAM]]&$F$5&Tabel3[[#This Row],[KENMERK]]&$F$5&Tabel3[[#This Row],[TOEPASSING]]","v":"organisch_hennep_ntb"},"j",3]
[{"$f":"SUBTOTAL(3,$F$7:F200)","v":194},"organisch","jute","organisch jute","ntb",{"$f":"Tabel3[[#This Row],[NAAM]]&$F$5&Tabel3[[#This Row],[KENMERK]]&$F$5&Tabel3[[#This Row],[TOEPASSING]]","v":"organisch_jute_ntb"},"j",5]
[{"$f":"SUBTOTAL(3,$F$7:F201)","v":195},"organisch","katoen","organisch katoen","ntb",{"$f":"Tabel3[[#This Row],[NAAM]]&$F$5&Tabel3[[#This Row],[KENMERK]]&$F$5&Tabel3[[#This Row],[TOEPASSING]]","v":"organisch_katoen_ntb"},"j",5]
[{"$f":"SUBTOTAL(3,$F$7:F202)","v":196},"organisch","kurk","organisch kurk","ntb",{"$f":"Tabel3[[#This Row],[NAAM]]&$F$5&Tabel3[[#This Row],[KENMERK]]&$F$5&Tabel3[[#This Row],[TOEPASSING]]","v":"organisch_kurk_ntb"},"j",5]
[{"$f":"SUBTOTAL(3,$F$7:F203)","v":197},"organisch","leer","organisch leer leder huid looien","ntb",{"$f":"Tabel3[[#This Row],[NAAM]]&$F$5&Tabel3[[#This Row],[KENMERK]]&$F$5&Tabel3[[#This Row],[TOEPASSING]]","v":"organisch_leer_ntb"},"j",6]
[{"$f":"SUBTOTAL(3,$F$7:F204)","v":198},"organisch","mais","organisch mais","ntb",{"$f":"Tabel3[[#This Row],[NAAM]]&$F$5&Tabel3[[#This Row],[KENMERK]]&$F$5&Tabel3[[#This Row],[TOEPASSING]]","v":"organisch_mais_ntb"},"j",3]
[{"$f":"SUBTOTAL(3,$F$7:F205)","v":199},"organisch","papier","organisch papier","ntb",{"$f":"Tabel3[[#This Row],[NAAM]]&$F$5&Tabel3[[#This Row],[KENMERK]]&$F$5&Tabel3[[#This Row],[TOEPASSING]]","v":"organisch_papier_ntb"},"j",2]
[{"$f":"SUBTOTAL(3,$F$7:F206)","v":200},"organisch","plantaardige-vezel","organisch plantaardige-vezel sisal kokos","ntb",{"$f":"Tabel3[[#This Row],[NAAM]]&$F$5&Tabel3[[#This Row],[KENMERK]]&$F$5&Tabel3[[#This Row],[TOEPASSING]]","v":"organisch_plantaardige-vezel_ntb"},"j",3]
[{"$f":"SUBTOTAL(3,$F$7:F207)","v":201},"organisch","riet","organisch riet phragmites australis synoniem phragmites communis gras grassen","ntb",{"$f":"Tabel3[[#This Row],[NAAM]]&$F$5&Tabel3[[#This Row],[KENMERK]]&$F$5&Tabel3[[#This Row],[TOEPASSING]]","v":"organisch_riet_ntb"},"j",3]
[{"$f":"SUBTOTAL(3,$F$7:F208)","v":202},"organisch","stro","organisch stro","ntb",{"$f":"Tabel3[[#This Row],[NAAM]]&$F$5&Tabel3[[#This Row],[KENMERK]]&$F$5&Tabel3[[#This Row],[TOEPASSING]]","v":"organisch_stro_ntb"},"j",3]
[{"$f":"SUBTOTAL(3,$F$7:F209)","v":203},"organisch","vegetatie","organisch vegetatie gras grassen mos sedum groen mossedum planten begroeiïng","ntb",{"$f":"Tabel3[[#This Row],[NAAM]]&$F$5&Tabel3[[#This Row],[KENMERK]]&$F$5&Tabel3[[#This Row],[TOEPASSING]]","v":"organisch_vegetatie_ntb"},"j",6]
[{"$f":"SUBTOTAL(3,$F$7:F210)","v":204},"organisch","vilt","organisch vilt","ntb",{"$f":"Tabel3[[#This Row],[NAAM]]&$F$5&Tabel3[[#This Row],[KENMERK]]&$F$5&Tabel3[[#This Row],[TOEPASSING]]","v":"organisch_vilt_ntb"},"j",6]
[{"$f":"SUBTOTAL(3,$F$7:F211)","v":205},"organisch","vlas","organisch vlas","ntb",{"$f":"Tabel3[[#This Row],[NAAM]]&$F$5&Tabel3[[#This Row],[KENMERK]]&$F$5&Tabel3[[#This Row],[TOEPASSING]]","v":"organisch_vlas_ntb"},"j",3]
[{"$f":"SUBTOTAL(3,$F$7:F212)","v":206},"organisch","wol","organisch wol schapenwol","ntb",{"$f":"Tabel3[[#This Row],[NAAM]]&$F$5&Tabel3[[#This Row],[KENMERK]]&$F$5&Tabel3[[#This Row],[TOEPASSING]]","v":"organisch_wol_ntb"},"j",6]
[{"$f":"SUBTOTAL(3,$F$7:F213)","v":207},"rubber","ntb","rubber ntb nog te bepalen weet niet ontwerp geen idee overig","ntb",{"$f":"Tabel3[[#This Row],[NAAM]]&$F$5&Tabel3[[#This Row],[KENMERK]]&$F$5&Tabel3[[#This Row],[TOEPASSING]]","v":"rubber_ntb_ntb"},"n",0]
[{"$f":"SUBTOTAL(3,$F$7:F214)","v":208},"rubber","generiek","rubber generiek ontwerp algemeen willekeurig van alles iets ","ntb",{"$f":"Tabel3[[#This Row],[NAAM]]&$F$5&Tabel3[[#This Row],[KENMERK]]&$F$5&Tabel3[[#This Row],[TOEPASSING]]","v":"rubber_generiek_ntb"},"n"]
[{"$f":"SUBTOTAL(3,$F$7:F215)","v":209},"rubber","butyl","rubber butyl polyisobutyleen","ntb",{"$f":"Tabel3[[#This Row],[NAAM]]&$F$5&Tabel3[[#This Row],[KENMERK]]&$F$5&Tabel3[[#This Row],[TOEPASSING]]","v":"rubber_butyl_ntb"},"n"]
[{"$f":"SUBTOTAL(3,$F$7:F216)","v":210},"rubber","epdm","rubber epdm","ntb",{"$f":"Tabel3[[#This Row],[NAAM]]&$F$5&Tabel3[[#This Row],[KENMERK]]&$F$5&Tabel3[[#This Row],[TOEPASSING]]","v":"rubber_epdm_ntb"},"n",5]
[{"$f":"SUBTOTAL(3,$F$7:F217)","v":211},"rubber","hard-rubber","rubber hard-rubber","ntb",{"$f":"Tabel3[[#This Row],[NAAM]]&$F$5&Tabel3[[#This Row],[KENMERK]]&$F$5&Tabel3[[#This Row],[TOEPASSING]]","v":"rubber_hard-rubber_ntb"},"n"]
[{"$f":"SUBTOTAL(3,$F$7:F218)","v":212},"rubber","linoleum","kunststof linoleum lijnzaadolie marmoleum","ntb",{"$f":"Tabel3[[#This Row],[NAAM]]&$F$5&Tabel3[[#This Row],[KENMERK]]&$F$5&Tabel3[[#This Row],[TOEPASSING]]","v":"rubber_linoleum_ntb"},"n",4]
[{"$f":"SUBTOTAL(3,$F$7:F219)","v":213},"rubber","natuurrubber","rubber natuurrubber","ntb",{"$f":"Tabel3[[#This Row],[NAAM]]&$F$5&Tabel3[[#This Row],[KENMERK]]&$F$5&Tabel3[[#This Row],[TOEPASSING]]","v":"rubber_natuurrubber_ntb"},"n",5]
[{"$f":"SUBTOTAL(3,$F$7:F220)","v":214},"rubber","neopreen","rubber neopreen","ntb",{"$f":"Tabel3[[#This Row],[NAAM]]&$F$5&Tabel3[[#This Row],[KENMERK]]&$F$5&Tabel3[[#This Row],[TOEPASSING]]","v":"rubber_neopreen_ntb"},"n",5]
[{"$f":"SUBTOTAL(3,$F$7:F221)","v":215},"rubber","polysulfide","rubber polysulfide","ntb",{"$f":"Tabel3[[#This Row],[NAAM]]&$F$5&Tabel3[[#This Row],[KENMERK]]&$F$5&Tabel3[[#This Row],[TOEPASSING]]","v":"rubber_polysulfide_ntb"},"n"]
[{"$f":"SUBTOTAL(3,$F$7:F222)","v":216},"rubber","schuimrubber","rubber schuimrubber kunststof ","ntb",{"$f":"Tabel3[[#This Row],[NAAM]]&$F$5&Tabel3[[#This Row],[KENMERK]]&$F$5&Tabel3[[#This Row],[TOEPASSING]]","v":"rubber_schuimrubber_ntb"},"n"]
[{"$f":"SUBTOTAL(3,$F$7:F223)","v":217},"rubber","tpve","rubber tpve kunststof thermoplastisch elastomeer technische rubbers synthetische rubbers of elastoplastische","ntb",{"$f":"Tabel3[[#This Row],[NAAM]]&$F$5&Tabel3[[#This Row],[KENMERK]]&$F$5&Tabel3[[#This Row],[TOEPASSING]]","v":"rubber_tpve_ntb"},"n"]
[{"$f":"SUBTOTAL(3,$F$7:F224)","v":218},"samengesteld","element","samengesteld ntb nog te bepalen weet niet ontwerp geen idee overig element hsb houtskeletbouw sanitair dakrand luifel kozijn deur","ntb",{"$f":"Tabel3[[#This Row],[NAAM]]&$F$5&Tabel3[[#This Row],[KENMERK]]&$F$5&Tabel3[[#This Row],[TOEPASSING]]","v":"samengesteld_element_ntb"},"a"]
[{"$f":"SUBTOTAL(3,$F$7:F225)","v":219},"samengesteld","product","samengesteld ntb nog te bepalen weet niet ontwerp geen idee overig element hsb houtskeletbouw sanitair dakrand luifel kozijn deur","ntb",{"$f":"Tabel3[[#This Row],[NAAM]]&$F$5&Tabel3[[#This Row],[KENMERK]]&$F$5&Tabel3[[#This Row],[TOEPASSING]]","v":"samengesteld_product_ntb"},"a"]
[{"$f":"SUBTOTAL(3,$F$7:F226)","v":220},"steenachtig","ntb","steenachtig ntb nog te bepalen weet niet ontwerp geen idee overig","ntb",{"$f":"Tabel3[[#This Row],[NAAM]]&$F$5&Tabel3[[#This Row],[KENMERK]]&$F$5&Tabel3[[#This Row],[TOEPASSING]]","v":"steenachtig_ntb_ntb"},"e"]
[{"$f":"SUBTOTAL(3,$F$7:F227)","v":221},"steenachtig","generiek","steenachtig generiek ontwerp algemeen willekeurig van alles iets ","ntb",{"$f":"Tabel3[[#This Row],[NAAM]]&$F$5&Tabel3[[#This Row],[KENMERK]]&$F$5&Tabel3[[#This Row],[TOEPASSING]]","v":"steenachtig_generiek_ntb"},"e"]
[{"$f":"SUBTOTAL(3,$F$7:F228)","v":222},"steenachtig","baksteen","steenachtig baksteen metselwerk steen stenen mw straatklinker trasraam plint rollaag gevelsteen dakrand borstwering verband","ntb",{"$f":"Tabel3[[#This Row],[NAAM]]&$F$5&Tabel3[[#This Row],[KENMERK]]&$F$5&Tabel3[[#This Row],[TOEPASSING]]","v":"steenachtig_baksteen_ntb"},"g",2]
[{"$f":"SUBTOTAL(3,$F$7:F229)","v":223},"steenachtig","calciumsilicaat","steenachtig calciumsilicaat plaat isolatie brandwerend onbrandbaar promatec promatect rook houtkachel","ntb",{"$f":"Tabel3[[#This Row],[NAAM]]&$F$5&Tabel3[[#This Row],[KENMERK]]&$F$5&Tabel3[[#This Row],[TOEPASSING]]","v":"steenachtig_calciumsilicaat_ntb"}]
[{"$f":"SUBTOTAL(3,$F$7:F230)","v":224},"steenachtig","geexpandeerde-klei","steenachtig geexpandeerde-klei","ntb",{"$f":"Tabel3[[#This Row],[NAAM]]&$F$5&Tabel3[[#This Row],[KENMERK]]&$F$5&Tabel3[[#This Row],[TOEPASSING]]","v":"steenachtig_geexpandeerde-klei_ntb"},"p",3]
[{"$f":"SUBTOTAL(3,$F$7:F231)","v":225},"steenachtig","kalksteen","steenachtig kalksteen silka","ntb",{"$f":"Tabel3[[#This Row],[NAAM]]&$F$5&Tabel3[[#This Row],[KENMERK]]&$F$5&Tabel3[[#This Row],[TOEPASSING]]","v":"steenachtig_kalksteen_ntb"},"e",3]
[{"$f":"SUBTOTAL(3,$F$7:F232)","v":226},"steenachtig","kalkzandsteen","steenachtig kalkzandsteen metselen lijmen elementen blokken vellingblok lijmblok silka xella calduran kim","ntb",{"$f":"Tabel3[[#This Row],[NAAM]]&$F$5&Tabel3[[#This Row],[KENMERK]]&$F$5&Tabel3[[#This Row],[TOEPASSING]]","v":"steenachtig_kalkzandsteen_ntb"},"f",1]
[{"$f":"SUBTOTAL(3,$F$7:F233)","v":227},"steenachtig","keramisch","steenachtig keramisch","ntb",{"$f":"Tabel3[[#This Row],[NAAM]]&$F$5&Tabel3[[#This Row],[KENMERK]]&$F$5&Tabel3[[#This Row],[TOEPASSING]]","v":"steenachtig_keramisch_ntb"},"g"]
[{"$f":"SUBTOTAL(3,$F$7:F234)","v":228},"steenachtig","kunststeen","steenachtig kunststeen composiet gegoten steen dorpel onderdorpel vensterbank waterslag spekband dakrand holonite ekosiet","ntb",{"$f":"Tabel3[[#This Row],[NAAM]]&$F$5&Tabel3[[#This Row],[KENMERK]]&$F$5&Tabel3[[#This Row],[TOEPASSING]]","v":"steenachtig_kunststeen_ntb"},"t",6]
[{"$f":"SUBTOTAL(3,$F$7:F235)","v":229},"steenachtig","porisosteen","steenachtig porisosteen","ntb",{"$f":"Tabel3[[#This Row],[NAAM]]&$F$5&Tabel3[[#This Row],[KENMERK]]&$F$5&Tabel3[[#This Row],[TOEPASSING]]","v":"steenachtig_porisosteen_ntb"},"g",2]
[{"$f":"SUBTOTAL(3,$F$7:F236)","v":230},"steenachtig","porselein","steenachtig porselein porcelein keramiek keramisch chinees delfts blauw","ntb",{"$f":"Tabel3[[#This Row],[NAAM]]&$F$5&Tabel3[[#This Row],[KENMERK]]&$F$5&Tabel3[[#This Row],[TOEPASSING]]","v":"steenachtig_porselein_ntb"},"g",2]
[{"$f":"SUBTOTAL(3,$F$7:F237)","v":231},null,null,null,null,{"$f":"Tabel3[[#This Row],[NAAM]]&$F$5&Tabel3[[#This Row],[KENMERK]]&$F$5&Tabel3[[#This Row],[TOEPASSING]]","v":"__"}]
[{"$f":"SUBTOTAL(3,$F$7:F238)","v":232},null,null,null,null,{"$f":"Tabel3[[#This Row],[NAAM]]&$F$5&Tabel3[[#This Row],[KENMERK]]&$F$5&Tabel3[[#This Row],[TOEPASSING]]","v":"__"}]
[{"$f":"SUBTOTAL(3,$F$7:F239)","v":233},null,null,null,null,{"$f":"Tabel3[[#This Row],[NAAM]]&$F$5&Tabel3[[#This Row],[KENMERK]]&$F$5&Tabel3[[#This Row],[TOEPASSING]]","v":"__"}]
[{"$f":"SUBTOTAL(3,$F$7:F240)","v":234},null,null,null,null,{"$f":"Tabel3[[#This Row],[NAAM]]&$F$5&Tabel3[[#This Row],[KENMERK]]&$F$5&Tabel3[[#This Row],[TOEPASSING]]","v":"__"}]
[{"$f":"SUBTOTAL(3,$F$7:F241)","v":235},null,null,null,null,{"$f":"Tabel3[[#This Row],[NAAM]]&$F$5&Tabel3[[#This Row],[KENMERK]]&$F$5&Tabel3[[#This Row],[TOEPASSING]]","v":"__"}]
[{"$f":"SUBTOTAL(3,$F$7:F242)","v":236},null,null,null,null,{"$f":"Tabel3[[#This Row],[NAAM]]&$F$5&Tabel3[[#This Row],[KENMERK]]&$F$5&Tabel3[[#This Row],[TOEPASSING]]","v":"__"}]
[{"$f":"SUBTOTAL(3,$F$7:F243)","v":237},null,null,null,null,{"$f":"Tabel3[[#This Row],[NAAM]]&$F$5&Tabel3[[#This Row],[KENMERK]]&$F$5&Tabel3[[#This Row],[TOEPASSING]]","v":"__"}]
[{"$f":"SUBTOTAL(3,$F$7:F244)","v":238},null,null,null,null,{"$f":"Tabel3[[#This Row],[NAAM]]&$F$5&Tabel3[[#This Row],[KENMERK]]&$F$5&Tabel3[[#This Row],[TOEPASSING]]","v":"__"}]
[{"$f":"SUBTOTAL(3,$F$7:F245)","v":239},null,null,null,null,{"$f":"Tabel3[[#This Row],[NAAM]]&$F$5&Tabel3[[#This Row],[KENMERK]]&$F$5&Tabel3[[#This Row],[TOEPASSING]]","v":"__"}]
[{"$f":"SUBTOTAL(3,$F$7:F246)","v":240},null,null,null,null,{"$f":"Tabel3[[#This Row],[NAAM]]&$F$5&Tabel3[[#This Row],[KENMERK]]&$F$5&Tabel3[[#This Row],[TOEPASSING]]","v":"__"}]
[{"$f":"SUBTOTAL(3,$F$7:F247)","v":241},null,null,null,null,{"$f":"Tabel3[[#This Row],[NAAM]]&$F$5&Tabel3[[#This Row],[KENMERK]]&$F$5&Tabel3[[#This Row],[TOEPASSING]]","v":"__"}]
[{"$f":"SUBTOTAL(3,$F$7:F248)","v":242},null,null,null,null,{"$f":"Tabel3[[#This Row],[NAAM]]&$F$5&Tabel3[[#This Row],[KENMERK]]&$F$5&Tabel3[[#This Row],[TOEPASSING]]","v":"__"}]
[{"$f":"SUBTOTAL(3,$F$7:F249)","v":243},null,null,null,null,{"$f":"Tabel3[[#This Row],[NAAM]]&$F$5&Tabel3[[#This Row],[KENMERK]]&$F$5&Tabel3[[#This Row],[TOEPASSING]]","v":"__"}]
[{"$f":"SUBTOTAL(3,$F$7:F250)","v":244},null,null,null,null,{"$f":"Tabel3[[#This Row],[NAAM]]&$F$5&Tabel3[[#This Row],[KENMERK]]&$F$5&Tabel3[[#This Row],[TOEPASSING]]","v":"__"}]
[{"$f":"SUBTOTAL(3,$F$7:F251)","v":245},null,null,null,null,{"$f":"Tabel3[[#This Row],[NAAM]]&$F$5&Tabel3[[#This Row],[KENMERK]]&$F$5&Tabel3[[#This Row],[TOEPASSING]]","v":"__"}]
[{"$f":"SUBTOTAL(3,$F$7:F252)","v":246},null,null,null,null,{"$f":"Tabel3[[#This Row],[NAAM]]&$F$5&Tabel3[[#This Row],[KENMERK]]&$F$5&Tabel3[[#This Row],[TOEPASSING]]","v":"__"}]
[{"$f":"SUBTOTAL(3,$F$7:F253)","v":247},null,null,null,null,{"$f":"Tabel3[[#This Row],[NAAM]]&$F$5&Tabel3[[#This Row],[KENMERK]]&$F$5&Tabel3[[#This Row],[TOEPASSING]]","v":"__"}]
[{"$f":"SUBTOTAL(3,$F$7:F254)","v":248},null,null,null,null,{"$f":"Tabel3[[#This Row],[NAAM]]&$F$5&Tabel3[[#This Row],[KENMERK]]&$F$5&Tabel3[[#This Row],[TOEPASSING]]","v":"__"}]
[{"$f":"SUBTOTAL(3,$F$7:F255)","v":249},null,null,null,null,{"$f":"Tabel3[[#This Row],[NAAM]]&$F$5&Tabel3[[#This Row],[KENMERK]]&$F$5&Tabel3[[#This Row],[TOEPASSING]]","v":"__"}]
[{"$f":"SUBTOTAL(3,$F$7:F256)","v":250},null,null,null,null,{"$f":"Tabel3[[#This Row],[NAAM]]&$F$5&Tabel3[[#This Row],[KENMERK]]&$F$5&Tabel3[[#This Row],[TOEPASSING]]","v":"__"}]
[{"$f":"SUBTOTAL(3,$F$7:F257)","v":251},null,null,null,null,{"$f":"Tabel3[[#This Row],[NAAM]]&$F$5&Tabel3[[#This Row],[KENMERK]]&$F$5&Tabel3[[#This Row],[TOEPASSING]]","v":"__"}]
[{"$f":"SUBTOTAL(3,$F$7:F258)","v":252},null,null,null,null,{"$f":"Tabel3[[#This Row],[NAAM]]&$F$5&Tabel3[[#This Row],[KENMERK]]&$F$5&Tabel3[[#This Row],[TOEPASSING]]","v":"__"}]
[{"$f":"SUBTOTAL(3,$F$7:F259)","v":253},null,null,null,null,{"$f":"Tabel3[[#This Row],[NAAM]]&$F$5&Tabel3[[#This Row],[KENMERK]]&$F$5&Tabel3[[#This Row],[TOEPASSING]]","v":"__"}]
[{"$f":"SUBTOTAL(3,$F$7:F260)","v":254},null,null,null,null,{"$f":"Tabel3[[#This Row],[NAAM]]&$F$5&Tabel3[[#This Row],[KENMERK]]&$F$5&Tabel3[[#This Row],[TOEPASSING]]","v":"__"}]
[{"$f":"SUBTOTAL(3,$F$7:F261)","v":255},null,null,null,null,{"$f":"Tabel3[[#This Row],[NAAM]]&$F$5&Tabel3[[#This Row],[KENMERK]]&$F$5&Tabel3[[#This Row],[TOEPASSING]]","v":"__"}]
[{"$f":"SUBTOTAL(3,$F$7:F262)","v":256},null,null,null,null,{"$f":"Tabel3[[#This Row],[NAAM]]&$F$5&Tabel3[[#This Row],[KENMERK]]&$F$5&Tabel3[[#This Row],[TOEPASSING]]","v":"__"}]
[{"$f":"SUBTOTAL(3,$F$7:F263)","v":257},null,null,null,null,{"$f":"Tabel3[[#This Row],[NAAM]]&$F$5&Tabel3[[#This Row],[KENMERK]]&$F$5&Tabel3[[#This Row],[TOEPASSING]]","v":"__"}]
[{"$f":"SUBTOTAL(3,$F$7:F264)","v":258},null,null,null,null,{"$f":"Tabel3[[#This Row],[NAAM]]&$F$5&Tabel3[[#This Row],[KENMERK]]&$F$5&Tabel3[[#This Row],[TOEPASSING]]","v":"__"}]
[{"$f":"SUBTOTAL(3,$F$7:F265)","v":259},null,null,null,null,{"$f":"Tabel3[[#This Row],[NAAM]]&$F$5&Tabel3[[#This Row],[KENMERK]]&$F$5&Tabel3[[#This Row],[TOEPASSING]]","v":"__"}]
[{"$f":"SUBTOTAL(3,$F$7:F266)","v":260},null,null,null,null,{"$f":"Tabel3[[#This Row],[NAAM]]&$F$5&Tabel3[[#This Row],[KENMERK]]&$F$5&Tabel3[[#This Row],[TOEPASSING]]","v":"__"}]
[{"$f":"SUBTOTAL(3,$F$7:F267)","v":261},null,null,null,null,{"$f":"Tabel3[[#This Row],[NAAM]]&$F$5&Tabel3[[#This Row],[KENMERK]]&$F$5&Tabel3[[#This Row],[TOEPASSING]]","v":"__"}]
[{"$f":"SUBTOTAL(3,$F$7:F268)","v":262},null,null,null,null,{"$f":"Tabel3[[#This Row],[NAAM]]&$F$5&Tabel3[[#This Row],[KENMERK]]&$F$5&Tabel3[[#This Row],[TOEPASSING]]","v":"__"}]
[{"$f":"SUBTOTAL(3,$F$7:F269)","v":263},null,null,null,null,{"$f":"Tabel3[[#This Row],[NAAM]]&$F$5&Tabel3[[#This Row],[KENMERK]]&$F$5&Tabel3[[#This Row],[TOEPASSING]]","v":"__"}]
[{"$f":"SUBTOTAL(3,$F$7:F270)","v":264},null,null,null,null,{"$f":"Tabel3[[#This Row],[NAAM]]&$F$5&Tabel3[[#This Row],[KENMERK]]&$F$5&Tabel3[[#This Row],[TOEPASSING]]","v":"__"}]
[{"$f":"SUBTOTAL(3,$F$7:F271)","v":265},null,null,null,null,{"$f":"Tabel3[[#This Row],[NAAM]]&$F$5&Tabel3[[#This Row],[KENMERK]]&$F$5&Tabel3[[#This Row],[TOEPASSING]]","v":"__"}]
[{"$f":"SUBTOTAL(3,$F$7:F272)","v":266},null,null,null,null,{"$f":"Tabel3[[#This Row],[NAAM]]&$F$5&Tabel3[[#This Row],[KENMERK]]&$F$5&Tabel3[[#This Row],[TOEPASSING]]","v":"__"}]
[{"$f":"SUBTOTAL(3,$F$7:F273)","v":267},null,null,null,null,{"$f":"Tabel3[[#This Row],[NAAM]]&$F$5&Tabel3[[#This Row],[KENMERK]]&$F$5&Tabel3[[#This Row],[TOEPASSING]]","v":"__"}]
[{"$f":"SUBTOTAL(3,$F$7:F274)","v":268},null,null,null,null,{"$f":"Tabel3[[#This Row],[NAAM]]&$F$5&Tabel3[[#This Row],[KENMERK]]&$F$5&Tabel3[[#This Row],[TOEPASSING]]","v":"__"}]
[{"$f":"SUBTOTAL(3,$F$7:F275)","v":269},null,null,null,null,{"$f":"Tabel3[[#This Row],[NAAM]]&$F$5&Tabel3[[#This Row],[KENMERK]]&$F$5&Tabel3[[#This Row],[TOEPASSING]]","v":"__"}]
[{"$f":"SUBTOTAL(3,$F$7:F276)","v":270},null,null,null,null,{"$f":"Tabel3[[#This Row],[NAAM]]&$F$5&Tabel3[[#This Row],[KENMERK]]&$F$5&Tabel3[[#This Row],[TOEPASSING]]","v":"__"}]
[{"$f":"SUBTOTAL(3,$F$7:F277)","v":271},null,null,null,null,{"$f":"Tabel3[[#This Row],[NAAM]]&$F$5&Tabel3[[#This Row],[KENMERK]]&$F$5&Tabel3[[#This Row],[TOEPASSING]]","v":"__"}]
[{"$f":"SUBTOTAL(3,$F$7:F278)","v":272},null,null,null,null,{"$f":"Tabel3[[#This Row],[NAAM]]&$F$5&Tabel3[[#This Row],[KENMERK]]&$F$5&Tabel3[[#This Row],[TOEPASSING]]","v":"__"}]
[{"$f":"SUBTOTAL(3,$F$7:F279)","v":273},null,null,null,null,{"$f":"Tabel3[[#This Row],[NAAM]]&$F$5&Tabel3[[#This Row],[KENMERK]]&$F$5&Tabel3[[#This Row],[TOEPASSING]]","v":"__"}]
[{"$f":"SUBTOTAL(3,$F$7:F280)","v":274},null,null,null,null,{"$f":"Tabel3[[#This Row],[NAAM]]&$F$5&Tabel3[[#This Row],[KENMERK]]&$F$5&Tabel3[[#This Row],[TOEPASSING]]","v":"__"}]
[{"$f":"SUBTOTAL(3,$F$7:F281)","v":275},null,null,null,null,{"$f":"Tabel3[[#This Row],[NAAM]]&$F$5&Tabel3[[#This Row],[KENMERK]]&$F$5&Tabel3[[#This Row],[TOEPASSING]]","v":"__"}]
[{"$f":"SUBTOTAL(3,$F$7:F282)","v":276},null,null,null,null,{"$f":"Tabel3[[#This Row],[NAAM]]&$F$5&Tabel3[[#This Row],[KENMERK]]&$F$5&Tabel3[[#This Row],[TOEPASSING]]","v":"__"}]
[{"$f":"SUBTOTAL(3,$F$7:F283)","v":277},null,null,null,null,{"$f":"Tabel3[[#This Row],[NAAM]]&$F$5&Tabel3[[#This Row],[KENMERK]]&$F$5&Tabel3[[#This Row],[TOEPASSING]]","v":"__"}]
[{"$f":"SUBTOTAL(3,$F$7:F284)","v":278},null,null,null,null,{"$f":"Tabel3[[#This Row],[NAAM]]&$F$5&Tabel3[[#This Row],[KENMERK]]&$F$5&Tabel3[[#This Row],[TOEPASSING]]","v":"__"}]
[{"$f":"SUBTOTAL(3,$F$7:F285)","v":279},null,null,null,null,{"$f":"Tabel3[[#This Row],[NAAM]]&$F$5&Tabel3[[#This Row],[KENMERK]]&$F$5&Tabel3[[#This Row],[TOEPASSING]]","v":"__"}]
[{"$f":"SUBTOTAL(3,$F$7:F286)","v":280},null,null,null,null,{"$f":"Tabel3[[#This Row],[NAAM]]&$F$5&Tabel3[[#This Row],[KENMERK]]&$F$5&Tabel3[[#This Row],[TOEPASSING]]","v":"__"}]
[{"$f":"SUBTOTAL(3,$F$7:F287)","v":281},null,null,null,null,{"$f":"Tabel3[[#This Row],[NAAM]]&$F$5&Tabel3[[#This Row],[KENMERK]]&$F$5&Tabel3[[#This Row],[TOEPASSING]]","v":"__"}]
[{"$f":"SUBTOTAL(3,$F$7:F288)","v":282},null,null,null,null,{"$f":"Tabel3[[#This Row],[NAAM]]&$F$5&Tabel3[[#This Row],[KENMERK]]&$F$5&Tabel3[[#This Row],[TOEPASSING]]","v":"__"}]
[{"$f":"SUBTOTAL(3,$F$7:F289)","v":283},null,null,null,null,{"$f":"Tabel3[[#This Row],[NAAM]]&$F$5&Tabel3[[#This Row],[KENMERK]]&$F$5&Tabel3[[#This Row],[TOEPASSING]]","v":"__"}]
[{"$f":"SUBTOTAL(3,$F$7:F290)","v":284},null,null,null,null,{"$f":"Tabel3[[#This Row],[NAAM]]&$F$5&Tabel3[[#This Row],[KENMERK]]&$F$5&Tabel3[[#This Row],[TOEPASSING]]","v":"__"}]
[{"$f":"SUBTOTAL(3,$F$7:F291)","v":285},null,null,null,null,{"$f":"Tabel3[[#This Row],[NAAM]]&$F$5&Tabel3[[#This Row],[KENMERK]]&$F$5&Tabel3[[#This Row],[TOEPASSING]]","v":"__"}]
[{"$f":"SUBTOTAL(3,$F$7:F292)","v":286},null,null,null,null,{"$f":"Tabel3[[#This Row],[NAAM]]&$F$5&Tabel3[[#This Row],[KENMERK]]&$F$5&Tabel3[[#This Row],[TOEPASSING]]","v":"__"}]
[{"$f":"SUBTOTAL(3,$F$7:F293)","v":287},null,null,null,null,{"$f":"Tabel3[[#This Row],[NAAM]]&$F$5&Tabel3[[#This Row],[KENMERK]]&$F$5&Tabel3[[#This Row],[TOEPASSING]]","v":"__"}]
[{"$f":"SUBTOTAL(3,$F$7:F294)","v":288},null,null,null,null,{"$f":"Tabel3[[#This Row],[NAAM]]&$F$5&Tabel3[[#This Row],[KENMERK]]&$F$5&Tabel3[[#This Row],[TOEPASSING]]","v":"__"}]
[{"$f":"SUBTOTAL(3,$F$7:F295)","v":289},null,null,null,null,{"$f":"Tabel3[[#This Row],[NAAM]]&$F$5&Tabel3[[#This Row],[KENMERK]]&$F$5&Tabel3[[#This Row],[TOEPASSING]]","v":"__"}]
[{"$f":"SUBTOTAL(3,$F$7:F296)","v":290},null,null,null,null,{"$f":"Tabel3[[#This Row],[NAAM]]&$F$5&Tabel3[[#This Row],[KENMERK]]&$F$5&Tabel3[[#This Row],[TOEPASSING]]","v":"__"}]
[{"$f":"SUBTOTAL(3,$F$7:F297)","v":291},null,null,null,null,{"$f":"Tabel3[[#This Row],[NAAM]]&$F$5&Tabel3[[#This Row],[KENMERK]]&$F$5&Tabel3[[#This Row],[TOEPASSING]]","v":"__"}]
[{"$f":"SUBTOTAL(3,$F$7:F298)","v":292},null,null,null,null,{"$f":"Tabel3[[#This Row],[NAAM]]&$F$5&Tabel3[[#This Row],[KENMERK]]&$F$5&Tabel3[[#This Row],[TOEPASSING]]","v":"__"}]
[{"$f":"SUBTOTAL(3,$F$7:F299)","v":293},null,null,null,null,{"$f":"Tabel3[[#This Row],[NAAM]]&$F$5&Tabel3[[#This Row],[KENMERK]]&$F$5&Tabel3[[#This Row],[TOEPASSING]]","v":"__"}]
[{"$f":"SUBTOTAL(3,$F$7:F300)","v":294},null,null,null,null,{"$f":"Tabel3[[#This Row],[NAAM]]&$F$5&Tabel3[[#This Row],[KENMERK]]&$F$5&Tabel3[[#This Row],[TOEPASSING]]","v":"__"}]
[{"$f":"SUBTOTAL(3,$F$7:F301)","v":295},null,null,null,null,{"$f":"Tabel3[[#This Row],[NAAM]]&$F$5&Tabel3[[#This Row],[KENMERK]]&$F$5&Tabel3[[#This Row],[TOEPASSING]]","v":"__"}]
[{"$f":"SUBTOTAL(3,$F$7:F302)","v":296},null,null,null,null,{"$f":"Tabel3[[#This Row],[NAAM]]&$F$5&Tabel3[[#This Row],[KENMERK]]&$F$5&Tabel3[[#This Row],[TOEPASSING]]","v":"__"}]
[{"$f":"SUBTOTAL(3,$F$7:F303)","v":297},null,null,null,null,{"$f":"Tabel3[[#This Row],[NAAM]]&$F$5&Tabel3[[#This Row],[KENMERK]]&$F$5&Tabel3[[#This Row],[TOEPASSING]]","v":"__"}]
[{"$f":"SUBTOTAL(3,$F$7:F304)","v":298},null,null,null,null,{"$f":"Tabel3[[#This Row],[NAAM]]&$F$5&Tabel3[[#This Row],[KENMERK]]&$F$5&Tabel3[[#This Row],[TOEPASSING]]","v":"__"}]
[{"$f":"SUBTOTAL(3,$F$7:F305)","v":299},null,null,null,null,{"$f":"Tabel3[[#This Row],[NAAM]]&$F$5&Tabel3[[#This Row],[KENMERK]]&$F$5&Tabel3[[#This Row],[TOEPASSING]]","v":"__"}]
[{"$f":"SUBTOTAL(3,$F$7:F306)","v":300},null,null,null,null,{"$f":"Tabel3[[#This Row],[NAAM]]&$F$5&Tabel3[[#This Row],[KENMERK]]&$F$5&Tabel3[[#This Row],[TOEPASSING]]","v":"__"}]
[{"$f":"SUBTOTAL(3,$F$7:F307)","v":301},null,null,null,null,{"$f":"Tabel3[[#This Row],[NAAM]]&$F$5&Tabel3[[#This Row],[KENMERK]]&$F$5&Tabel3[[#This Row],[TOEPASSING]]","v":"__"}]
[{"$f":"SUBTOTAL(3,$F$7:F308)","v":302},null,null,null,null,{"$f":"Tabel3[[#This Row],[NAAM]]&$F$5&Tabel3[[#This Row],[KENMERK]]&$F$5&Tabel3[[#This Row],[TOEPASSING]]","v":"__"}]
[{"$f":"SUBTOTAL(3,$F$7:F309)","v":303},null,null,null,null,{"$f":"Tabel3[[#This Row],[NAAM]]&$F$5&Tabel3[[#This Row],[KENMERK]]&$F$5&Tabel3[[#This Row],[TOEPASSING]]","v":"__"}]
[{"$f":"SUBTOTAL(3,$F$7:F310)","v":304},null,null,null,null,{"$f":"Tabel3[[#This Row],[NAAM]]&$F$5&Tabel3[[#This Row],[KENMERK]]&$F$5&Tabel3[[#This Row],[TOEPASSING]]","v":"__"}]
[{"$f":"SUBTOTAL(3,$F$7:F311)","v":305},null,null,null,null,{"$f":"Tabel3[[#This Row],[NAAM]]&$F$5&Tabel3[[#This Row],[KENMERK]]&$F$5&Tabel3[[#This Row],[TOEPASSING]]","v":"__"}]
[{"$f":"SUBTOTAL(3,$F$7:F312)","v":306},null,null,null,null,{"$f":"Tabel3[[#This Row],[NAAM]]&$F$5&Tabel3[[#This Row],[KENMERK]]&$F$5&Tabel3[[#This Row],[TOEPASSING]]","v":"__"}]
[{"$f":"SUBTOTAL(3,$F$7:F313)","v":307},null,null,null,null,{"$f":"Tabel3[[#This Row],[NAAM]]&$F$5&Tabel3[[#This Row],[KENMERK]]&$F$5&Tabel3[[#This Row],[TOEPASSING]]","v":"__"}]
[{"$f":"SUBTOTAL(3,$F$7:F314)","v":308},null,null,null,null,{"$f":"Tabel3[[#This Row],[NAAM]]&$F$5&Tabel3[[#This Row],[KENMERK]]&$F$5&Tabel3[[#This Row],[TOEPASSING]]","v":"__"}]
[{"$f":"SUBTOTAL(3,$F$7:F315)","v":309},null,null,null,null,{"$f":"Tabel3[[#This Row],[NAAM]]&$F$5&Tabel3[[#This Row],[KENMERK]]&$F$5&Tabel3[[#This Row],[TOEPASSING]]","v":"__"}]
[{"$f":"SUBTOTAL(3,$F$7:F316)","v":310},null,null,null,null,{"$f":"Tabel3[[#This Row],[NAAM]]&$F$5&Tabel3[[#This Row],[KENMERK]]&$F$5&Tabel3[[#This Row],[TOEPASSING]]","v":"__"}]
[{"$f":"SUBTOTAL(3,$F$7:F317)","v":311},null,null,null,null,{"$f":"Tabel3[[#This Row],[NAAM]]&$F$5&Tabel3[[#This Row],[KENMERK]]&$F$5&Tabel3[[#This Row],[TOEPASSING]]","v":"__"}]
[{"$f":"SUBTOTAL(3,$F$7:F318)","v":312},null,null,null,null,{"$f":"Tabel3[[#This Row],[NAAM]]&$F$5&Tabel3[[#This Row],[KENMERK]]&$F$5&Tabel3[[#This Row],[TOEPASSING]]","v":"__"}]
[{"$f":"SUBTOTAL(3,$F$7:F319)","v":313},null,null,null,null,{"$f":"Tabel3[[#This Row],[NAAM]]&$F$5&Tabel3[[#This Row],[KENMERK]]&$F$5&Tabel3[[#This Row],[TOEPASSING]]","v":"__"}]
[{"$f":"SUBTOTAL(3,$F$7:F320)","v":314},null,null,null,null,{"$f":"Tabel3[[#This Row],[NAAM]]&$F$5&Tabel3[[#This Row],[KENMERK]]&$F$5&Tabel3[[#This Row],[TOEPASSING]]","v":"__"}]
[{"$f":"SUBTOTAL(3,$F$7:F321)","v":315},null,null,null,null,{"$f":"Tabel3[[#This Row],[NAAM]]&$F$5&Tabel3[[#This Row],[KENMERK]]&$F$5&Tabel3[[#This Row],[TOEPASSING]]","v":"__"}]
[{"$f":"SUBTOTAL(3,$F$7:F322)","v":316},null,null,null,null,{"$f":"Tabel3[[#This Row],[NAAM]]&$F$5&Tabel3[[#This Row],[KENMERK]]&$F$5&Tabel3[[#This Row],[TOEPASSING]]","v":"__"}]
[{"$f":"SUBTOTAL(3,$F$7:F323)","v":317},null,null,null,null,{"$f":"Tabel3[[#This Row],[NAAM]]&$F$5&Tabel3[[#This Row],[KENMERK]]&$F$5&Tabel3[[#This Row],[TOEPASSING]]","v":"__"}]

{"sheet":"RESULTATEN","index":1,"n_rows":600,"n_cols":7,"rows_kept":600,"cut":false,"hidden":false,"merged":[]}
[null,"NAA.K.T.","xx","xx",null,"d.d.",{"$f":"TODAY()","v":"2021-05-11"}]
[null,"RESULTAAT","NL-SfB","Tabel 3","NAAM","KENMERK","TOEPASSING"]
[{"$f":"IF(B3=\"\",\"\",\"•\")","v":""},null,null,null,{"$f":"IF(B3=\"\",\"NAA.k.t.\",LEFT(B3,SEARCH(\"_\",B3)-1))","v":"NAA.k.t."},{"$f":"IF(B3=\"\",\"naa.K.t.\",MID(B3,SEARCH(\"_\",B3)+1,SEARCH(\"_\",B3,SEARCH(\"_\",B3)+1)-SEARCH(\"_\",B3)-1))","v":"naa.K.t."},{"$f":"IF(B3=\"\",\"naa.k.T.\",RIGHT(B3,LEN(B3)-LEN(E3)-LEN(F3)-2))","v":"naa.k.T."}]
["",null,null,null,"NAA.k.t.","naa.K.t.","naa.k.T."]
["",null,null,null,"NAA.k.t.","naa.K.t.","naa.k.T."]
["",null,null,null,"NAA.k.t.","naa.K.t.","naa.k.T."]
["",null,null,null,"NAA.k.t.","naa.K.t.","naa.k.T."]
["",null,null,null,"NAA.k.t.","naa.K.t.","naa.k.T."]
["",null,null,null,"NAA.k.t.","naa.K.t.","naa.k.T."]
["",null,null,null,"NAA.k.t.","naa.K.t.","naa.k.T."]
["",null,null,null,"NAA.k.t.","naa.K.t.","naa.k.T."]
["",null,null,null,"NAA.k.t.","naa.K.t.","naa.k.T."]
["",null,null,null,"NAA.k.t.","naa.K.t.","naa.k.T."]
["",null,null,null,"NAA.k.t.","naa.K.t.","naa.k.T."]
["",null,null,null,"NAA.k.t.","naa.K.t.","naa.k.T."]
["",null,null,null,"NAA.k.t.","naa.K.t.","naa.k.T."]
["",null,null,null,"NAA.k.t.","naa.K.t.","naa.k.T."]
["",null,null,null,"NAA.k.t.","naa.K.t.","naa.k.T."]
["",null,null,null,"NAA.k.t.","naa.K.t.","naa.k.T."]
["",null,null,null,"NAA.k.t.","naa.K.t.","naa.k.T."]
["",null,null,null,"NAA.k.t.","naa.K.t.","naa.k.T."]
["",null,null,null,"NAA.k.t.","naa.K.t.","naa.k.T."]
["",null,null,null,"NAA.k.t.","naa.K.t.","naa.k.T."]
["",null,null,null,"NAA.k.t.","naa.K.t.","naa.k.T."]
["",null,null,null,"NAA.k.t.","naa.K.t.","naa.k.T."]
["",null,null,null,"NAA.k.t.","naa.K.t.","naa.k.T."]
["",null,null,null,"NAA.k.t.","naa.K.t.","naa.k.T."]
["",null,null,null,"NAA.k.t.","naa.K.t.","naa.k.T."]
["",null,null,null,"NAA.k.t.","naa.K.t.","naa.k.T."]
["",null,null,null,"NAA.k.t.","naa.K.t.","naa.k.T."]
["",null,null,null,"NAA.k.t.","naa.K.t.","naa.k.T."]
["",null,null,null,"NAA.k.t.","naa.K.t.","naa.k.T."]
["",null,null,null,"NAA.k.t.","naa.K.t.","naa.k.T."]
["",null,null,null,"NAA.k.t.","naa.K.t.","naa.k.T."]
["",null,null,null,"NAA.k.t.","naa.K.t.","naa.k.T."]
["",null,null,null,"NAA.k.t.","naa.K.t.","naa.k.T."]
["",null,null,null,"NAA.k.t.","naa.K.t.","naa.k.T."]
["",null,null,null,"NAA.k.t.","naa.K.t.","naa.k.T."]
["",null,null,null,"NAA.k.t.","naa.K.t.","naa.k.T."]
["",null,null,null,"NAA.k.t.","naa.K.t.","naa.k.T."]
["",null,null,null,"NAA.k.t.","naa.K.t.","naa.k.T."]
["",null,null,null,"NAA.k.t.","naa.K.t.","naa.k.T."]
["",null,null,null,"NAA.k.t.","naa.K.t.","naa.k.T."]
["",null,null,null,"NAA.k.t.","naa.K.t.","naa.k.T."]
["",null,null,null,"NAA.k.t.","naa.K.t.","naa.k.T."]
["",null,null,null,"NAA.k.t.","naa.K.t.","naa.k.T."]
["",null,null,null,"NAA.k.t.","naa.K.t.","naa.k.T."]
["",null,null,null,"NAA.k.t.","naa.K.t.","naa.k.T."]
["",null,null,null,"NAA.k.t.","naa.K.t.","naa.k.T."]
["",null,null,null,"NAA.k.t.","naa.K.t.","naa.k.T."]
["",null,null,null,"NAA.k.t.","naa.K.t.","naa.k.T."]
["",null,null,null,"NAA.k.t.","naa.K.t.","naa.k.T."]
["",null,null,null,"NAA.k.t.","naa.K.t.","naa.k.T."]
["",null,null,null,"NAA.k.t.","naa.K.t.","naa.k.T."]
["",null,null,null,"NAA.k.t.","naa.K.t.","naa.k.T."]
["",null,null,null,"NAA.k.t.","naa.K.t.","naa.k.T."]
["",null,null,null,"NAA.k.t.","naa.K.t.","naa.k.T."]
["",null,null,null,"NAA.k.t.","naa.K.t.","naa.k.T."]
["",null,null,null,"NAA.k.t.","naa.K.t.","naa.k.T."]
["",null,null,null,"NAA.k.t.","naa.K.t.","naa.k.T."]
["",null,null,null,"NAA.k.t.","naa.K.t.","naa.k.T."]
["",null,null,null,"NAA.k.t.","naa.K.t.","naa.k.T."]
["",null,null,null,"NAA.k.t.","naa.K.t.","naa.k.T."]
["",null,null,null,"NAA.k.t.","naa.K.t.","naa.k.T."]
["",null,null,null,"NAA.k.t.","naa.K.t.","naa.k.T."]
["",null,null,null,"NAA.k.t.","naa.K.t.","naa.k.T."]
[{"$f":"IF(B67=\"\",\"\",\"•\")","v":""},null,null,null,{"$f":"IF(B67=\"\",\"NAA.k.t.\",LEFT(B67,SEARCH(\"_\",B67)-1))","v":"NAA.k.t."},{"$f":"IF(B67=\"\",\"naa.K.t.\",MID(B67,SEARCH(\"_\",B67)+1,SEARCH(\"_\",B67,SEARCH(\"_\",B67)+1)-SEARCH(\"_\",B67)-1))","v":"naa.K.t."},{"$f":"IF(B67=\"\",\"naa.k.T.\",RIGHT(B67,LEN(B67)-LEN(E67)-LEN(F67)-2))","v":"naa.k.T."}]
["",null,null,null,"NAA.k.t.","naa.K.t.","naa.k.T."]
["",null,null,null,"NAA.k.t.","naa.K.t.","naa.k.T."]
["",null,null,null,"NAA.k.t.","naa.K.t.","naa.k.T."]
["",null,null,null,"NAA.k.t.","naa.K.t.","naa.k.T."]
["",null,null,null,"NAA.k.t.","naa.K.t.","naa.k.T."]
["",null,null,null,"NAA.k.t.","naa.K.t.","naa.k.T."]
["",null,null,null,"NAA.k.t.","naa.K.t.","naa.k.T."]
["",null,null,null,"NAA.k.t.","naa.K.t.","naa.k.T."]
["",null,null,null,"NAA.k.t.","naa.K.t.","naa.k.T."]
["",null,null,null,"NAA.k.t.","naa.K.t.","naa.k.T."]
["",null,null,null,"NAA.k.t.","naa.K.t.","naa.k.T."]
["",null,null,null,"NAA.k.t.","naa.K.t.","naa.k.T."]
["",null,null,null,"NAA.k.t.","naa.K.t.","naa.k.T."]
["",null,null,null,"NAA.k.t.","naa.K.t.","naa.k.T."]
["",null,null,null,"NAA.k.t.","naa.K.t.","naa.k.T."]
["",null,null,null,"NAA.k.t.","naa.K.t.","naa.k.T."]
["",null,null,null,"NAA.k.t.","naa.K.t.","naa.k.T."]
["",null,null,null,"NAA.k.t.","naa.K.t.","naa.k.T."]
["",null,null,null,"NAA.k.t.","naa.K.t.","naa.k.T."]
["",null,null,null,"NAA.k.t.","naa.K.t.","naa.k.T."]
["",null,null,null,"NAA.k.t.","naa.K.t.","naa.k.T."]
["",null,null,null,"NAA.k.t.","naa.K.t.","naa.k.T."]
["",null,null,null,"NAA.k.t.","naa.K.t.","naa.k.T."]
["",null,null,null,"NAA.k.t.","naa.K.t.","naa.k.T."]
["",null,null,null,"NAA.k.t.","naa.K.t.","naa.k.T."]
["",null,null,null,"NAA.k.t.","naa.K.t.","naa.k.T."]
["",null,null,null,"NAA.k.t.","naa.K.t.","naa.k.T."]
["",null,null,null,"NAA.k.t.","naa.K.t.","naa.k.T."]
["",null,null,null,"NAA.k.t.","naa.K.t.","naa.k.T."]
["",null,null,null,"NAA.k.t.","naa.K.t.","naa.k.T."]
["",null,null,null,"NAA.k.t.","naa.K.t.","naa.k.T."]
["",null,null,null,"NAA.k.t.","naa.K.t.","naa.k.T."]
["",null,null,null,"NAA.k.t.","naa.K.t.","naa.k.T."]
["",null,null,null,"NAA.k.t.","naa.K.t.","naa.k.T."]
["",null,null,null,"NAA.k.t.","naa.K.t.","naa.k.T."]
["",null,null,null,"NAA.k.t.","naa.K.t.","naa.k.T."]
["",null,null,null,"NAA.k.t.","naa.K.t.","naa.k.T."]
["",null,null,null,"NAA.k.t.","naa.K.t.","naa.k.T."]
["",null,null,null,"NAA.k.t.","naa.K.t.","naa.k.T."]
["",null,null,null,"NAA.k.t.","naa.K.t.","naa.k.T."]
["",null,null,null,"NAA.k.t.","naa.K.t.","naa.k.T."]
["",null,null,null,"NAA.k.t.","naa.K.t.","naa.k.T."]
["",null,null,null,"NAA.k.t.","naa.K.t.","naa.k.T."]
["",null,null,null,"NAA.k.t.","naa.K.t.","naa.k.T."]
["",null,null,null,"NAA.k.t.","naa.K.t.","naa.k.T."]
["",null,null,null,"NAA.k.t.","naa.K.t.","naa.k.T."]
["",null,null,null,"NAA.k.t.","naa.K.t.","naa.k.T."]
["",null,null,null,"NAA.k.t.","naa.K.t.","naa.k.T."]
["",null,null,null,"NAA.k.t.","naa.K.t.","naa.k.T."]
["",null,null,null,"NAA.k.t.","naa.K.t.","naa.k.T."]
["",null,null,null,"NAA.k.t.","naa.K.t.","naa.k.T."]
["",null,null,null,"NAA.k.t.","naa.K.t.","naa.k.T."]
["",null,null,null,"NAA.k.t.","naa.K.t.","naa.k.T."]
["",null,null,null,"NAA.k.t.","naa.K.t.","naa.k.T."]
["",null,null,null,"NAA.k.t.","naa.K.t.","naa.k.T."]
["",null,null,null,"NAA.k.t.","naa.K.t.","naa.k.T."]
["",null,null,null,"NAA.k.t.","naa.K.t.","naa.k.T."]
["",null,null,null,"NAA.k.t.","naa.K.t.","naa.k.T."]
["",null,null,null,"NAA.k.t.","naa.K.t.","naa.k.T."]
["",null,null,null,"NAA.k.t.","naa.K.t.","naa.k.T."]
["",null,null,null,"NAA.k.t.","naa.K.t.","naa.k.T."]
["",null,null,null,"NAA.k.t.","naa.K.t.","naa.k.T."]
["",null,null,null,"NAA.k.t.","naa.K.t.","naa.k.T."]
[{"$f":"IF(B131=\"\",\"\",\"•\")","v":""},null,null,null,{"$f":"IF(B131=\"\",\"NAA.k.t.\",LEFT(B131,SEARCH(\"_\",B131)-1))","v":"NAA.k.t."},{"$f":"IF(B131=\"\",\"naa.K.t.\",MID(B131,SEARCH(\"_\",B131)+1,SEARCH(\"_\",B131,SEARCH(\"_\",B131)+1)-SEARCH(\"_\",B131)-1))","v":"naa.K.t."},{"$f":"IF(B131=\"\",\"naa.k.T.\",RIGHT(B131,LEN(B131)-LEN(E131)-LEN(F131)-2))","v":"naa.k.T."}]
["",null,null,null,"NAA.k.t.","naa.K.t.","naa.k.T."]
["",null,null,null,"NAA.k.t.","naa.K.t.","naa.k.T."]
["",null,null,null,"NAA.k.t.","naa.K.t.","naa.k.T."]
["",null,null,null,"NAA.k.t.","naa.K.t.","naa.k.T."]
["",null,null,null,"NAA.k.t.","naa.K.t.","naa.k.T."]
["",null,null,null,"NAA.k.t.","naa.K.t.","naa.k.T."]
["",null,null,null,"NAA.k.t.","naa.K.t.","naa.k.T."]
["",null,null,null,"NAA.k.t.","naa.K.t.","naa.k.T."]
["",null,null,null,"NAA.k.t.","naa.K.t.","naa.k.T."]
["",null,null,null,"NAA.k.t.","naa.K.t.","naa.k.T."]
["",null,null,null,"NAA.k.t.","naa.K.t.","naa.k.T."]
["",null,null,null,"NAA.k.t.","naa.K.t.","naa.k.T."]
["",null,null,null,"NAA.k.t.","naa.K.t.","naa.k.T."]
["",null,null,null,"NAA.k.t.","naa.K.t.","naa.k.T."]
["",null,null,null,"NAA.k.t.","naa.K.t.","naa.k.T."]
["",null,null,null,"NAA.k.t.","naa.K.t.","naa.k.T."]
["",null,null,null,"NAA.k.t.","naa.K.t.","naa.k.T."]
["",null,null,null,"NAA.k.t.","naa.K.t.","naa.k.T."]
["",null,null,null,"NAA.k.t.","naa.K.t.","naa.k.T."]
["",null,null,null,"NAA.k.t.","naa.K.t.","naa.k.T."]
["",null,null,null,"NAA.k.t.","naa.K.t.","naa.k.T."]
["",null,null,null,"NAA.k.t.","naa.K.t.","naa.k.T."]
["",null,null,null,"NAA.k.t.","naa.K.t.","naa.k.T."]
["",null,null,null,"NAA.k.t.","naa.K.t.","naa.k.T."]
["",null,null,null,"NAA.k.t.","naa.K.t.","naa.k.T."]
["",null,null,null,"NAA.k.t.","naa.K.t.","naa.k.T."]
["",null,null,null,"NAA.k.t.","naa.K.t.","naa.k.T."]
["",null,null,null,"NAA.k.t.","naa.K.t.","naa.k.T."]
["",null,null,null,"NAA.k.t.","naa.K.t.","naa.k.T."]
["",null,null,null,"NAA.k.t.","naa.K.t.","naa.k.T."]
["",null,null,null,"NAA.k.t.","naa.K.t.","naa.k.T."]
["",null,null,null,"NAA.k.t.","naa.K.t.","naa.k.T."]
["",null,null,null,"NAA.k.t.","naa.K.t.","naa.k.T."]
["",null,null,null,"NAA.k.t.","naa.K.t.","naa.k.T."]
["",null,null,null,"NAA.k.t.","naa.K.t.","naa.k.T."]
["",null,null,null,"NAA.k.t.","naa.K.t.","naa.k.T."]
["",null,null,null,"NAA.k.t.","naa.K.t.","naa.k.T."]
["",null,null,null,"NAA.k.t.","naa.K.t.","naa.k.T."]
["",null,null,null,"NAA.k.t.","naa.K.t.","naa.k.T."]
["",null,null,null,"NAA.k.t.","naa.K.t.","naa.k.T."]
["",null,null,null,"NAA.k.t.","naa.K.t.","naa.k.T."]
["",null,null,null,"NAA.k.t.","naa.K.t.","naa.k.T."]
["",null,null,null,"NAA.k.t.","naa.K.t.","naa.k.T."]
["",null,null,null,"NAA.k.t.","naa.K.t.","naa.k.T."]
["",null,null,null,"NAA.k.t.","naa.K.t.","naa.k.T."]
["",null,null,null,"NAA.k.t.","naa.K.t.","naa.k.T."]
["",null,null,null,"NAA.k.t.","naa.K.t.","naa.k.T."]
["",null,null,null,"NAA.k.t.","naa.K.t.","naa.k.T."]
["",null,null,null,"NAA.k.t.","naa.K.t.","naa.k.T."]
["",null,null,null,"NAA.k.t.","naa.K.t.","naa.k.T."]
["",null,null,null,"NAA.k.t.","naa.K.t.","naa.k.T."]
["",null,null,null,"NAA.k.t.","naa.K.t.","naa.k.T."]
["",null,null,null,"NAA.k.t.","naa.K.t.","naa.k.T."]
["",null,null,null,"NAA.k.t.","naa.K.t.","naa.k.T."]
["",null,null,null,"NAA.k.t.","naa.K.t.","naa.k.T."]
["",null,null,null,"NAA.k.t.","naa.K.t.","naa.k.T."]
["",null,null,null,"NAA.k.t.","naa.K.t.","naa.k.T."]
["",null,null,null,"NAA.k.t.","naa.K.t.","naa.k.T."]
["",null,null,null,"NAA.k.t.","naa.K.t.","naa.k.T."]
["",null,null,null,"NAA.k.t.","naa.K.t.","naa.k.T."]
["",null,null,null,"NAA.k.t.","naa.K.t.","naa.k.T."]
["",null,null,null,"NAA.k.t.","naa.K.t.","naa.k.T."]
["",null,null,null,"NAA.k.t.","naa.K.t.","naa.k.T."]
[{"$f":"IF(B195=\"\",\"\",\"•\")","v":""},null,null,null,{"$f":"IF(B195=\"\",\"NAA.k.t.\",LEFT(B195,SEARCH(\"_\",B195)-1))","v":"NAA.k.t."},{"$f":"IF(B195=\"\",\"naa.K.t.\",MID(B195,SEARCH(\"_\",B195)+1,SEARCH(\"_\",B195,SEARCH(\"_\",B195)+1)-SEARCH(\"_\",B195)-1))","v":"naa.K.t."},{"$f":"IF(B195=\"\",\"naa.k.T.\",RIGHT(B195,LEN(B195)-LEN(E195)-LEN(F195)-2))","v":"naa.k.T."}]
["",null,null,null,"NAA.k.t.","naa.K.t.","naa.k.T."]
["",null,null,null,"NAA.k.t.","naa.K.t.","naa.k.T."]
["",null,null,null,"NAA.k.t.","naa.K.t.","naa.k.T."]
["",null,null,null,"NAA.k.t.","naa.K.t.","naa.k.T."]
["",null,null,null,"NAA.k.t.","naa.K.t.","naa.k.T."]
["",null,null,null,"NAA.k.t.","naa.K.t.","naa.k.T."]
["",null,null,null,"NAA.k.t.","naa.K.t.","naa.k.T."]
["",null,null,null,"NAA.k.t.","naa.K.t.","naa.k.T."]
["",null,null,null,"NAA.k.t.","naa.K.t.","naa.k.T."]
["",null,null,null,"NAA.k.t.","naa.K.t.","naa.k.T."]
["",null,null,null,"NAA.k.t.","naa.K.t.","naa.k.T."]
["",null,null,null,"NAA.k.t.","naa.K.t.","naa.k.T."]
["",null,null,null,"NAA.k.t.","naa.K.t.","naa.k.T."]
["",null,null,null,"NAA.k.t.","naa.K.t.","naa.k.T."]
["",null,null,null,"NAA.k.t.","naa.K.t.","naa.k.T."]
["",null,null,null,"NAA.k.t.","naa.K.t.","naa.k.T."]
["",null,null,null,"NAA.k.t.","naa.K.t.","naa.k.T."]
["",null,null,null,"NAA.k.t.","naa.K.t.","naa.k.T."]
["",null,null,null,"NAA.k.t.","naa.K.t.","naa.k.T."]
["",null,null,null,"NAA.k.t.","naa.K.t.","naa.k.T."]
["",null,null,null,"NAA.k.t.","naa.K.t.","naa.k.T."]
["",null,null,null,"NAA.k.t.","naa.K.t.","naa.k.T."]
["",null,null,null,"NAA.k.t.","naa.K.t.","naa.k.T."]
["",null,null,null,"NAA.k.t.","naa.K.t.","naa.k.T."]
["",null,null,null,"NAA.k.t.","naa.K.t.","naa.k.T."]
["",null,null,null,"NAA.k.t.","naa.K.t.","naa.k.T."]
["",null,null,null,"NAA.k.t.","naa.K.t.","naa.k.T."]
["",null,null,null,"NAA.k.t.","naa.K.t.","naa.k.T."]
["",null,null,null,"NAA.k.t.","naa.K.t.","naa.k.T."]
["",null,null,null,"NAA.k.t.","naa.K.t.","naa.k.T."]
["",null,null,null,"NAA.k.t.","naa.K.t.","naa.k.T."]
["",null,null,null,"NAA.k.t.","naa.K.t.","naa.k.T."]
["",null,null,null,"NAA.k.t.","naa.K.t.","naa.k.T."]
["",null,null,null,"NAA.k.t.","naa.K.t.","naa.k.T."]
["",null,null,null,"NAA.k.t.","naa.K.t.","naa.k.T."]
["",null,null,null,"NAA.k.t.","naa.K.t.","naa.k.T."]
["",null,null,null,"NAA.k.t.","naa.K.t.","naa.k.T."]
["",null,null,null,"NAA.k.t.","naa.K.t.","naa.k.T."]
["",null,null,null,"NAA.k.t.","naa.K.t.","naa.k.T."]
["",null,null,null,"NAA.k.t.","naa.K.t.","naa.k.T."]
["",null,null,null,"NAA.k.t.","naa.K.t.","naa.k.T."]
["",null,null,null,"NAA.k.t.","naa.K.t.","naa.k.T."]
["",null,null,null,"NAA.k.t.","naa.K.t.","naa.k.T."]
["",null,null,null,"NAA.k.t.","naa.K.t.","naa.k.T."]
["",null,null,null,"NAA.k.t.","naa.K.t.","naa.k.T."]
["",null,null,null,"NAA.k.t.","naa.K.t.","naa.k.T."]
["",null,null,null,"NAA.k.t.","naa.K.t.","naa.k.T."]
["",null,null,null,"NAA.k.t.","naa.K.t.","naa.k.T."]
["",null,null,null,"NAA.k.t.","naa.K.t.","naa.k.T."]
["",null,null,null,"NAA.k.t.","naa.K.t.","naa.k.T."]
["",null,null,null,"NAA.k.t.","naa.K.t.","naa.k.T."]
["",null,null,null,"NAA.k.t.","naa.K.t.","naa.k.T."]
["",null,null,null,"NAA.k.t.","naa.K.t.","naa.k.T."]
["",null,null,null,"NAA.k.t.","naa.K.t.","naa.k.T."]
["",null,null,null,"NAA.k.t.","naa.K.t.","naa.k.T."]
[""]
[""]
[""]
[""]
[""]
[""]
[""]
[""]
[{"$f":"IF(B259=\"\",\"\",\"•\")","v":""}]
[""]
[""]
[""]
[""]
[""]
[""]
[""]
[""]
[""]
[""]
[""]
[""]
[""]
[""]
[""]
[""]
[""]
[""]
[""]
[""]
[""]
[""]
[""]
[""]
[""]
[""]
[""]
[""]
[""]
[""]
[""]
[""]
[""]
[""]
[""]
[""]
[""]
[""]
[""]
[""]
[""]
[""]
[""]
[""]
[""]
[""]
[""]
[""]
[""]
[""]
[""]
[""]
[""]
[""]
[""]
[""]
[""]
[""]
[""]
[""]
[""]
[""]
[""]
[{"$f":"IF(B323=\"\",\"\",\"•\")","v":""}]
[""]
[""]
[""]
[""]
[""]
[""]
[""]
[""]
[""]
[""]
[""]
[""]
[""]
[""]
[""]
[""]
[""]
[""]
[""]
[""]
[""]
[""]
[""]
[""]
[""]
[""]
[""]
[""]
[""]
[""]
[""]
[""]
[""]
[""]
[""]
[""]
[""]
[""]
[""]
[""]
[""]
[""]
[""]
[""]
[""]
[""]
[""]
[""]
[""]
[""]
[""]
[""]
[""]
[""]
[""]
[""]
[""]
[""]
[""]
[""]
[""]
[""]
[""]
[{"$f":"IF(B387=\"\",\"\",\"•\")","v":""}]
[""]
[""]
[""]
[""]
[""]
[""]
[""]
[""]
[""]
[""]
[""]
[""]
[""]
[""]
[""]
[""]
[""]
[""]
[""]
[""]
[""]
[""]
[""]
[""]
[""]
[""]
[""]
[""]
[""]
[""]
[""]
[""]
[""]
[""]
[""]
[""]
[""]
[""]
[""]
[""]
[""]
[""]
[""]
[""]
[""]
[""]
[""]
[""]
[""]
[""]
[""]
[""]
[""]
[""]
[""]
[""]
[""]
[""]
[""]
[""]
[""]
[""]
[""]
[{"$f":"IF(B451=\"\",\"\",\"•\")","v":""}]
[""]
[""]
[""]
[""]
[""]
[""]
[""]
[""]
[""]
[""]
[""]
[""]
[""]
[""]
[""]
[""]
[""]
[""]
[""]
[""]
[""]
[""]
[""]
[""]
[""]
[""]
[""]
[""]
[""]
[""]
[""]
[""]
[""]
[""]
[""]
[""]
[""]
[""]
[""]
[""]
[""]
[""]
[""]
[""]
[""]
[""]
[""]
[""]
[""]
[""]
[""]
[""]
[""]
[""]
[""]
[""]
[""]
[""]
[""]
[""]
[""]
[""]
[""]
[{"$f":"IF(B515=\"\",\"\",\"•\")","v":""}]
[""]
[""]
[""]
[""]
[""]
[""]
[""]
[""]
[""]
[""]
[""]
[""]
[""]
[""]
[""]
[""]
[""]
[""]
[""]
[""]
[""]
[""]
[""]
[""]
[""]
[""]
[""]
[""]
[""]
[""]
[""]
[""]
[""]
[""]
[""]
[""]
[""]
[""]
[""]
[""]
[""]
[""]
[""]
[""]
[""]
[""]
[""]
[""]
[""]
[""]
[""]
[""]
[""]
[""]
[""]
[""]
[""]
[""]
[""]
[""]
[""]
[""]
[""]
[{"$f":"IF(B579=\"\",\"\",\"•\")","v":""}]
[""]
[""]
[""]
[""]
[""]
[""]
[""]
[""]
[""]
[""]
[""]
[""]
[""]
[""]
[""]
[""]
[""]
[""]
[""]
[""]
[""]

{"sheet":"TOEPASSINGEN","index":2,"n_rows":24,"n_cols":28,"rows_kept":24,"cut":false,"hidden":false,"merged":[]}
["BETON","BITUMEN","CEMENT","GIPS","GLAS","GRONDSTOF","HOUT","ISOLATIE","KUNSTSTOF","METAAL","NATUURSTEEN","NTB","ORGANISCH","RUBBER","SAMENGESTELD","STEENACHTIG","Kolom16","Kolom17","Kolom18","Kolom19","Kolom20","Kolom21","Kolom22","Kolom23","Kolom24","Kolom25","Kolom26","Kolom27"]
["ntb","ntb","ntb","ntb","ntb","ntb","ntb","ntb","ntb","ntb","ntb","ntb","ntb","ntb","ntb","ntb"]
["generiek","generiek","generiek","generiek","generiek","generiek","generiek","generiek","generiek","generiek","generiek","generiek","generiek","generiek","generiek","generiek"]
["ballast","bedekking","granulaat","bedekking","blok","blok","blok","deken","bedekking","blok","blok","bedekking","bedekking","bedekking","apparatuur","blok"]
["basalton","folie","ihw","blok","granulaat","granulaat","plaat","korrels","blok","draad","element","blok","element","blok","dakrand","element"]
["blok","gegoten","plaat","ihw","plaat","ihw","prefab-element","plaat","doek","element","granulaat","deken","folie","element","deur","granulaat"]
["granulaat","gietsel",null,"plaat","steen","pleister","profiel","rol","element","folie","grind","folie","granulaat","folie","hek","grind"]
["ihw","plaat",null,"pleister",null,"steen","schaaldeel","schuim","folie","gaas","klinker","gegoten","plaat","kit","hsb","klinker"]
["kit",null,null,"prefab-element",null,"substraat","stam","substraat","granulaat","kabel","pan","gietsel","plaat","plaat","keuken","pan"]
["klinker",null,null,"profiel",null,"tegel","tegel","vlokken","kit","pan","plaat","granulaat","profiel","profiel","kozijn","plaat"]
["onderwater",null,null,null,null,"vulling","vezel","vulling","plaat","plaat","profiel","ihw","slabbe","slabbe","luifel","pleister"]
["pan",null,null,null,null,null,"vlokken",null,"profiel","profiel","steen","kit","substraat",null,"metalstud","prefab"]
["prefab-element",null,null,null,null,null,"vulling",null,"schuim","vezel","tegel","klinker","verf",null,"meubel","profiel"]
["steen",null,null,null,null,null,null,null,"slabbe","vlechtwerk","strip","pan",null,null,"plafond","steen"]
["tegel",null,null,null,null,null,null,null,"verf",null,null,"plaat",null,null,"rekwerk","strip"]
[null,null,null,null,null,null,null,null,null,null,null,"pleister",null,null,"sanitair","substraat"]
[null,null,null,null,null,null,null,null,null,null,null,"prefab-element",null,null,"terreininchting","tegel"]
[null,null,null,null,null,null,null,null,null,null,null,"profiel",null,null,"vloer","trasraam"]
[null,null,null,null,null,null,null,null,null,null,null,"rol",null,null,"wand"]
[null,null,null,null,null,null,null,null,null,null,null,"schuim"]
[null,null,null,null,null,null,null,null,null,null,null,"slabbe"]
[null,null,null,null,null,null,null,null,null,null,null,"steen"]
[null,null,null,null,null,null,null,null,null,null,null,"tegel"]
[null,null,null,null,null,null,null,null,null,null,null,"vulling"]

{"sheet":"AANVULLINGEN","index":3,"n_rows":1,"n_cols":7,"rows_kept":1,"cut":false,"hidden":false,"merged":[]}
["NAAM (as is)","voorstel aanvulling / wijz.","KENMERK (as is)","voorstel aanvulling / wijz.2","TOEPASSING (as is)","voorstel aanvulling / wijz.3","TOELICHTING (eventueel)"]